{"text_format":"1","workbook":"xlsx","n_sheets":11,"sheets":["Table of Contents","Accountability","Bus Data","Local Expenditures","Local Expenditures. (Continued)","Policy Questionnaire","Inventory","Obsolete Inventory","Buster Report","Official Summary","Policy Summary"],"not_rendered":{"charts":0,"images":100,"macros":1,"external_links":0,"defined_names":10,"comments":0,"pivot_tables":0},"unopened":[],"bounds":{"document_bytes":16777216,"sheet_cells":100000,"rows_first":2000,"rows_last":500,"rows_between":2000,"halvings":0,"cell_chars":16384,"cell_head_chars":4096},"cells_cut":0,"cells_raw":0,"read":"whole","date_system":"1900"}

{"sheet":"Table of Contents","index":0,"n_rows":28,"n_cols":2,"rows_kept":28,"cut":false,"hidden":false,"merged":[[3,1,6,1]]}
[]
[]
[null,"Updated: 2022-06-01 - Wright  "]
[null,"2022 TD-1 Report"]
[]
[]
[]
[]
[null,"Table of "]
[null,"Contents"]
[]
[null,"Accountability"]
[]
[null,"Bus Data"]
[]
[null,"Local Expenditures"]
[null,"Local Expenditures (Continued)"]
[]
[null,"Policy Questionnaire"]
[]
[null,"Inventory"]
[null,"Obsolete Inventory"]
[]
[null,"Buster Report"]
[]
[null,"DPI Use"]
[null,"Official Summary"]
[null,"Official Policy Summary"]

{"sheet":"Accountability","index":1,"n_rows":14,"n_cols":10,"rows_kept":14,"cut":false,"hidden":false,"merged":[[2,2,3,5],[1,9,4,9],[17,2,17,5],[15,2,16,5],[7,2,7,3],[9,2,9,3],[11,2,11,3],[13,2,13,3]]}
[]
[null,null,null,null,null,"Updated: 2022-06-01 - Wright  ",null,null,null,"See instructions\nfor \nSave & Email\nbuttons"]
[null,null,"Accountability"]
[]
[]
[]
[]
[null,null,"Electronic Signature:"]
[]
[null,null,"Title:"]
[]
[null,null,"Phone:"]
[]
[null,null,"Email:"]

{"sheet":"Bus Data","index":2,"n_rows":245,"n_cols":17,"rows_kept":245,"cut":false,"hidden":false,"merged":[[73,5,73,6],[36,5,36,8],[42,5,42,6],[43,5,43,8],[46,4,46,8],[47,5,47,6],[63,4,63,6],[64,4,64,6],[59,5,59,6],[60,5,60,6],[50,4,50,6],[48,5,48,6],[53,4,53,6],[54,4,54,6],[19,4,19,6],[12,4,12,6],[67,5,67,6],[69,5,69,6],[71,5,71,6],[20,5,20,6],[21,5,21,6],[22,5,22,6],[27,5,27,6],[28,5,28,6],[24,4,24,6],[26,4,26,6],[58,4,58,6],[61,4,61,6],[62,4,62,6],[55,4,55,6],[29,5,29,8],[32,5,32,6],[33,5,33,6],[35,5,35,8],[45,4,45,6],[5,2,5,6],[6,4,6,6],[8,4,8,6],[17,4,17,6],[9,5,9,6],[10,5,10,6],[13,5,13,6],[14,5,14,6],[15,5,15,6]]}
[]
[]
[null,null,null,null,null,null,"LEA Name",null,"LEA Number",null,null,null,null,null,null,"(Save, Email, and Print All options available on Accountability worksheet tab)"]
[null,null,null,null,null,null,"ALAMANCE",null,{"$f":"INDEX(I130:I245,MATCH(G4,G130:G245,0),1)","v":"  010"}]
[]
[null,null,"Bus Data"]
[null,null,null,"A.","Number of Days Fleet Operated (maximum 185) ",null,null,null,null,null,"(Sub-Totals)"]
[]
[null,null,null,"B.","Total Bus Mileage for fiscal year"]
[null,null,null,null,1,"Regular & Spare"]
[null,null,null,null,2,"EC & EC Spare",null,null,null,null,{"$f":"IF(OR(I10>0,I11>0),ROUND(I10+I11,0),0)","v":0}]
[]
[null,null,null,"C.","Detail Data (Line B Above - Regular School mileage)"]
[null,null,null,null,1,"Regular  & Spare"]
[null,null,null,null,2,"EC & EC Spare"]
[null,null,null,null,3,"Refunded miles (All sources)",null,null,null,null,{"$f":"IF(OR(I14>0,I15>0,I16>0),ROUND(SUM(I14:I16),0),0)","v":0},null,{"$f":"SUM(I10:I11)-SUM(I14:I16)","v":0}]
[]
[null,null,null,"D.","Total miles operated by all service (support) vehicle(s)"]
[]
[null,null,null,"E.","Buses Operated  (Do NOT include spares)"]
[null,null,null,null,1,"Regular"]
[null,null,null,null,2,"EC"]
[null,null,null,null,3,"NERS buses",null,null,null,null,{"$f":"IF(SUM(I21:I23)>0,SUM(I21:I23),0)","v":0}]
[]
[null,null,null,"F.","Buses operated for Summer School"]
[]
[null,null,null,"G.","Bus Communication Devices*"]
[null,null,null,null,1,"Buses with 2-way radios"]
[null,null,null,null,"2.","Buses with cell phones"]
[null,null,null,null,null,"(Include radios & cell phones that are purchased, but not installed in the total count.)"]
[]
[null,null,null,"H.","Bus Safety Assistants and Cameras*"]
[null,null,null,null,1,"Safety assistant(s)/monitor(s) onboard"]
[null,null,null,null,2,"Analog Camera System (Recording to Tape) "]
[null,null,null,null,3,"Interior Digital Camera System (Computer)"]
[null,null,null,null,null,"(Include cameras that are purchased, but not installed in the total counts)"]
[null,null,null,null,null,"System Type",null,null,null,null,"Pri. System",null,"Sec. System"]
[null,null,null,null,null,"a.","One camera"]
[null,null,null,null,null,"b.","Two cameras"]
[null,null,null,null,null,"c.","Three cameras"]
[null,null,null,null,null,"d.","Four or more cameras",null,null,null,{"$f":"IF(SUM(I38:I41)>0,SUM(I38:I41),0)","v":0}]
[]
[null,null,null,null,4,"Buses with exterior stop arm cameras"]
[null,null,null,null,null,"System Type",null,null,null,null,"Pri. System",null,"Sec. System"]
[]
[null,null,null,"I.","Bus GPS/Automatic Vehicle Location Systems"]
[null,null,null,null,"System Type",null,null,null,null,null,"Pri. System",null,"Sec. System"]
[null,null,null,null,1,"Real Time GPS trackers"]
[null,null,null,null,2,"Passive GPS trackers",null,null,null,null,{"$f":"IF(SUM(I48:I49)>0,SUM(I48:I49),\"0\")","v":"0"}]
[]
[null,null,null,"J.","Buses with electronic time keeping systems"]
[]
[null,null,"Surplus Property"]
[null,null,null,"A.","School buses sold (includes line \"C\")"]
[null,null,null,"B.","State service vehicles sold"]
[null,null,null,"C.","School buses sold as scrap metal"]
[]
[null,null,"State Surplus Contracts",null,null,null,null,null,null,null,null,null,null,null,null,null," "]
[null,null,null,"A.","Scrap Tires Sold"]
[null,null,null,null,1,"To state scrap tire contractor"]
[null,null,null,null,2,"To vendor for parts credit",null,null,null,null,{"$f":"IF(SUM(I60:I61)>0,SUM(I60:I61),0)","v":0}]
[null,null,null,"B.","Gallons of used oil recycled"]
[null,null,null,"C.","Gallons of used anti-freeze recycled"]
[null,null,null,"D.","Gallons of biodiesel purchased"]
[null,null,null,"E.","Pounds scrap metal sold"]
[]
[null,null,"Signatures"]
[]
[null,null,null,null,null,null,"Cost Clerk",null,"mm-dd-yyyy"]
[]
[null,null,null,null,null,null,"Director of Transporation",null,"mm-dd-yyyy"]
[]
[null,null,null,null,null,null,"Finance Officer",null,"mm-dd-yyyy"]
[]
[null,null,null,null,null,null,"Superintendent",null,"mm-dd-yyyy"]
[]
[]
[]
[]
[]
[]
[]
[]
[]
[]
[]
[]
[]
[]
[]
[]
[]
[]
[]
[]
[]
[]
[]
[]
[]
[]
[]
[]
[]
[]
[]
[]
[]
[]
[]
[]
[]
[]
[]
[]
[]
[]
[]
[]
[]
[]
[]
[]
[]
[]
[]
[]
[]
[null,null,null,null,null,null,"LEA Name",null,"LEA #"]
[null,null,null,null,null,null,"(SELECT)",null," ",null,"Stop Arm Camaras",null,"GPS & VEHICLE TRACKING"]
[null,null,null,null,null,null,"ALAMANCE",null,"  010",null,"Pri. System",null,"Pri. System"]
[null,null,null,null,null,null,"ALEXANDER",null,"  020",null,"Fortress Mobile ",null,"Ed. Logistics inc"]
[null,null,null,null,null,null,"ALLEGHANY",null,"  030",null,"Angel Trax",null,"Synovia"]
[null,null,null,null,null,null,"ANSON",null,"  040",null,"Seon",null,"Versatrans"]
[null,null,null,null,null,null,"ASHE",null,"  050",null,"Zen-Tinel",null,"Zen-Tinel","X"]
[null,null,null,null,null,null,"AVERY",null,"  060",null,"247 security In.",null,"Zonar Sys. Inc.","X"]
[null,null,null,null,null,null,"BEAUFORT",null,"  070",null,"REI",null,"247 security In."]
[null,null,null,null,null,null,"BERTIE",null,"  080",null,"Gate Keeper Sya. Inc"]
[null,null,null,null,null,null,"BLADEN",null,"  090",null,"Safety Vision"]
[null,null,null,null,null,null,"BRUNSWICK",null,"  100",null,"Pro-Vision"]
[null,null,null,null,null,null,"BUNCOMBE",null,"  110"]
[null,null,null,null,null,null,"ASHEVILLE CITY",null,"  111"]
[null,null,null,null,null,null,"BURKE",null,"  120",null,null,null,null,"X"]
[null,null,null,null,null,null,"CABARRUS",null,"  130"]
[null,null,null,null,null,null,"KANNAPOLIS CITY",null,"  132"]
[null,null,null,null,null,null,"CALDWELL",null,"  140"]
[null,null,null,null,null,null,"CAMDEN",null,"  150"]
[null,null,null,null,null,null,"CARTERET",null,"  160"]
[null,null,null,null,null,null,"CASWELL",null,"  170"]
[null,null,null,null,null,null,"CATAWBA",null,"  180"]
[null,null,null,null,null,null,"HICKORY CITY",null,"  181"]
[null,null,null,null,null,null,"NEWTON-CONOVER CITY",null,"  182"]
[null,null,null,null,null,null,"CHATHAM",null,"  190",null,"Sec. System",null,"Sec. System"]
[null,null,null,null,null,null,"CHEROKEE",null,"  200",null,"Fortress Mobile ",null,"Ed. Logistics inc"]
[null,null,null,null,null,null,"CHOWAN",null,"  210",null,"Angel Trax",null,"Synovia"]
[null,null,null,null,null,null,"CLAY",null,"  220",null,"Seon",null,"Versatrans"]
[null,null,null,null,null,null,"CLEVELAND",null,"  230",null,"Zen-Tinel",null,"Zen-Tinel"]
[null,null,null,null,null,null,"COLUMBUS",null,"  240",null,"247 security In.",null,"Zonar Sys. Inc."]
[null,null,null,null,null,null,"WHITEVILLE CITY",null,"  241",null,"REI",null,"247 security In."]
[null,null,null,null,null,null,"CRAVEN",null,"  250",null,"Gate Keeper Sya. Inc"]
[null,null,null,null,null,null,"CUMBERLAND",null,"  260",null,"Safety Vision"]
[null,null,null,null,null,null,"CURRITUCK",null,"  270",null,"Pro-Vision"]
[null,null,null,null,null,null,"DARE",null,"  280"]
[null,null,null,null,null,null,"DAVIDSON",null,"  290"]
[null,null,null,null,null,null,"LEXINGTON CITY",null,"  291"]
[null,null,null,null,null,null,"THOMASVILLE CITY",null,"  292"]
[null,null,null,null,null,null,"DAVIE",null,"  300"]
[null,null,null,null,null,null,"DUPLIN",null,"  310"]
[null,null,null,null,null,null,"DURHAM",null,"  320"]
[null,null,null,null,null,null,"EDGECOMBE",null,"  330"]
[null,null,null,null,null,null,"FORSYTH",null,"  340"]
[null,null,null,null,null,null,"FRANKLIN",null,"  350"]
[null,null,null,null,null,null,"GASTON",null,"  360"]
[null,null,null,null,null,null,"GATES",null,"  370"]
[null,null,null,null,null,null,"GRAHAM",null,"  380"]
[null,null,null,null,null,null,"GRANVILLE",null,"  390"]
[null,null,null,null,null,null,"GREENE",null,"  400"]
[null,null,null,null,null,null,"GUILFORD",null,"  410"]
[null,null,null,null,null,null,"HALIFAX",null,"  420"]
[null,null,null,null,null,null,"ROANOKE RAPIDS CITY",null,"  421"]
[null,null,null,null,null,null,"WELDON CITY",null,"  422"]
[null,null,null,null,null,null,"HARNETT",null,"  430"]
[null,null,null,null,null,null,"HAYWOOD",null,"  440"]
[null,null,null,null,null,null,"HENDERSON",null,"  450"]
[null,null,null,null,null,null,"HERTFORD",null,"  460"]
[null,null,null,null,null,null,"HOKE",null,"  470"]
[null,null,null,null,null,null,"HYDE",null,"  480"]
[null,null,null,null,null,null,"IREDELL",null,"  490"]
[null,null,null,null,null,null,"MOORESVILLE CITY",null,"  491"]
[null,null,null,null,null,null,"JACKSON",null,"  500"]
[null,null,null,null,null,null,"JOHNSTON",null,"  510"]
[null,null,null,null,null,null,"JONES",null,"  520"]
[null,null,null,null,null,null,"LEE",null,"  530"]
[null,null,null,null,null,null,"LENOIR",null,"  540"]
[null,null,null,null,null,null,"LINCOLN",null,"  550"]
[null,null,null,null,null,null,"MACON",null,"  560"]
[null,null,null,null,null,null,"MADISON",null,"  570"]
[null,null,null,null,null,null,"MARTIN",null,"  580"]
[null,null,null,null,null,null,"McDOWELL",null,"  590"]
[null,null,null,null,null,null,"MECKLENBURG",null,"  600"]
[null,null,null,null,null,null,"MITCHELL",null,"  610"]
[null,null,null,null,null,null,"MONTGOMERY",null,"  620"]
[null,null,null,null,null,null,"MOORE",null,"  630"]
[null,null,null,null,null,null,"NASH",null,"  640"]
[null,null,null,null,null,null,"NEW HANOVER",null,"  650"]
[null,null,null,null,null,null,"NORTHAMPTON",null,"  660"]
[null,null,null,null,null,null,"ONSLOW",null,"  670"]
[null,null,null,null,null,null,"ORANGE",null,"  680"]
[null,null,null,null,null,null,"CHAPEL HILL CITY",null,"  681"]
[null,null,null,null,null,null,"PAMLICO",null,"  690"]
[null,null,null,null,null,null,"PASQUOTANK",null,"  700"]
[null,null,null,null,null,null,"PENDER",null,"  710"]
[null,null,null,null,null,null,"PERQUIMANS",null,"  720"]
[null,null,null,null,null,null,"PERSON",null,"  730"]
[null,null,null,null,null,null,"PITT",null,"  740"]
[null,null,null,null,null,null,"POLK",null,"  750"]
[null,null,null,null,null,null,"RANDOLPH",null,"  760"]
[null,null,null,null,null,null,"ASHEBORO CITY",null,"  761"]
[null,null,null,null,null,null,"RICHMOND",null,"  770"]
[null,null,null,null,null,null,"ROBESON",null,"  780"]
[null,null,null,null,null,null,"ROCKINGHAM",null,"  790"]
[null,null,null,null,null,null,"ROWAN",null,"  800"]
[null,null,null,null,null,null,"RUTHERFORD",null,"  810"]
[null,null,null,null,null,null,"SAMPSON",null,"  820"]
[null,null,null,null,null,null,"CLINTON CITY",null,"  821"]
[null,null,null,null,null,null,"SCOTLAND",null,"  830"]
[null,null,null,null,null,null,"STANLY",null,"  840"]
[null,null,null,null,null,null,"STOKES",null,"  850"]
[null,null,null,null,null,null,"SURRY",null,"  860"]
[null,null,null,null,null,null,"ELKIN CITY",null,"  861"]
[null,null,null,null,null,null,"MT AIRY CITY",null,"  862"]
[null,null,null,null,null,null,"SWAIN",null,"  870"]
[null,null,null,null,null,null,"TRANSYLVANIA",null,"  880"]
[null,null,null,null,null,null,"TYRRELL",null,"  890"]
[null,null,null,null,null,null,"UNION",null,"  900"]
[null,null,null,null,null,null,"VANCE",null,"  910"]
[null,null,null,null,null,null,"WAKE",null,"  920"]
[null,null,null,null,null,null,"WARREN",null,"  930"]
[null,null,null,null,null,null,"WASHINGTON",null,"  940"]
[null,null,null,null,null,null,"WATAUGA",null,"  950"]
[null,null,null,null,null,null,"WAYNE",null,"  960"]
[null,null,null,null,null,null,"WILKES",null,"  970"]
[null,null,null,null,null,null,"WILSON",null,"  980"]
[null,null,null,null,null,null,"YADKIN",null,"  990"]
[null,null,null,null,null,null,"YANCEY",null,"  995"]

{"sheet":"Local Expenditures","index":3,"n_rows":120,"n_cols":41,"rows_kept":120,"cut":false,"hidden":false,"merged":[[8,4,8,9],[10,4,10,9],[2,7,5,13],[12,4,12,13],[18,4,18,13],[7,2,7,5],[6,7,7,7],[6,9,7,9],[6,11,7,11],[27,2,27,7],[13,4,13,9],[15,5,15,11],[21,4,21,5],[20,4,20,5],[16,5,16,9],[28,4,28,5],[29,5,29,11],[30,5,30,11],[31,4,31,5],[32,5,32,11],[48,7,51,13],[53,2,53,7],[33,5,33,11],[35,4,35,7],[45,5,45,9],[46,5,46,9],[62,7,62,9],[63,5,63,11],[64,5,64,11],[56,4,56,7],[54,4,54,9],[55,4,55,9],[57,7,57,9],[58,7,58,9],[59,7,59,9],[60,7,60,9],[61,7,61,9],[21,20,22,38],[23,20,23,38],[24,26,25,28],[24,30,25,30],[28,22,30,22],[28,24,30,24],[28,26,30,26],[28,28,30,28],[28,30,30,30],[28,32,30,32],[28,34,30,34],[28,36,30,36],[54,19,56,38],[45,19,47,38],[40,22,40,38],[28,38,30,38],[28,20,30,20],[39,22,39,38]]}
[]
[]
[null,null,null,"Finance Officer Certification",null,null,null,"Expenditures reported on lines 1-5 are limited to payment for drivers transporting students to and from school for a maximum 185 days per year.  It does not consist of payments for field-trips, remediation programs, pre-K programs, etc.",null,null,null,null,null,null,null,null,null,null,null,null,null,null,null,null,null,null,null,null,null,null,null,null,null,null,null,null,null,null,null,null,"(Save, Email, and Print All options available on Accountability worksheet tab)"]
[]
[null,null,null,null,null,null,null,null,null,null,null,null,null,null,null,"(FO Initials)"]
[]
[null,null,null,null,null,null,null,"Current Yearly Rate:",null,17.89,null,"PRC/\nObject Code"]
[null,null,"Bus Drivers - Local Expenditures",null,null,null,null,null,null,null,null,null,null,null,null,"(Subtotals)"]
[null,null,null,"A.","Driver Salary (Except incentive pay/bonuses) (Exclude benefits)",null,null,null,null,null,null,null,null,0]
[]
[null,null,null,"B.","Driver Incentive pay or Bonuses (Exclude benefits)",null,null,null,null,null,null,null,null,0]
[]
[null,null,null,"C.","Including total compensation from both state funds and the amount input for "]
[null,null,null,null,"line A above, did you have any drivers paid over yearly per hour rate?",null,null,null,null,null,null,"No"]
[]
[null,null,null,null,1,"Number of drivers?"]
[null,null,null,null,2,"Total wages paid in excess of  yearly per hour rate"]
[]
[null,null,null,null,"Subtract the amount in line C2 from the amount line A",null,null,null,null,null,null,null,null,null,null,{"$f":"SUM(N9-N17)","v":0}]
[]
[null,null,null,null,null,null,null,null,null,"Salaries",null,"Bonuses",null,"Excess Wages"]
[null,null,null,"D.","Driver Matching Benefits ",null,null,"PRC/Object Code",null,"(Ln A above)",null,"(Ln B above)",null,"(Ln C above)",null,null,null,null,null,null,"Line C2 - Driver Salary Total Compensation in Excess of maximum allowed under the state salary schedule."]
[null,null,null,null,null,"Social Security",null,null,null,0,null,0,null,0]
[null,null,null,null,null,"Retirement",null,null,null,0,null,0,null,0,null,null,null,null,null,null,"(Examples and Computation Assist)"]
[null,null,null,null,null,"Medical Cost",null,null,null,0,null,0,null,0,null,null,null,null,null,null,null,null,null,null,null,null,"Current Yearly Rate:",null,null,null,{"$f":"J7","v":17.89}]
[null,null,null,null,null,"Total Benefits",null,null,null,{"$f":"IF(SUM(J23:J25),SUM(J23:J25),\"\")","v":""},null,{"$f":"IF(SUM(L23:L25),SUM(L23:L25),\"\")","v":""},null,{"$f":"IF(SUM(N23:N25),SUM(N23:N25),\"\")","v":""}]
[]
[null,null,"Transporation Personnel",null,null,null,null,null,null,null,null,null,null,null,null,null,null,null,null,null,"Column Ref.",null,"A",null,"B",null,"C",null,"D",null,"E",null,"F",null,"G",null,"H",null,"I"]
[null,null,null,"A.","State Paid Positions",null,null,null,null,null,null,null,null,null,null,null,null,null,null,null,"Description:",null,"State Hourly Salary",null,"Local Hourly Salary",null,"Total Hourly Salary",null,"Annual Hours Paid",null,"Annual Salary",null,"Other Local Comp.",null,"Total Annual Salary",null,"Annual Salary",null,{"$f":"\"Excess Over $\"&$AE$25","v":"Excess Over $17.89"}]
[null,null,null,null,1,"Administrative",null,null,null,null,null,null,null,0]
[null,null,null,null,2,"Mechanic ",null,null,null,null,null,null,null,0]
[null,null,null,"B.","Local Paid Positions",null,null,null,null,null,null,null,null,null,null,null,null,null,null,null,"Computation:",null,"Input",null,"Input",null,"(Col A + Col B)",null,"Input",null,"(Col C x Col D)",null,"Input",null,"(Col E + Col F)",null,"(Col D x Rate)",null,"(Col G - Col H)"]
[null,null,null,null,1,"Administrative",null,null,null,null,null,null,null,0]
[null,null,null,null,2,"Mechanic ",null,null,null,null,null,null,null,0,null,null,null,null,null,null,"Example:  A",null,8.75,null,0.75,null,{"$f":"SUM(W34:Y34)","v":9.5},null,810,null,{"$f":"SUM(AA34*AC34)","v":7695},null,0,null,{"$f":"SUM(AE34:AG34)","v":7695},null,{"$f":"SUM(AC34*$AE$25)","v":14490.9},null,{"$f":"MAX(0,SUM(AI34-AK34))","v":0}]
[null,null,null,null,null,null,null,null,null,null,null,"Total Positons:",null,null,null,{"$f":"IF(SUM(N30:N31,N33:N34),SUM(N30:N31,N33:N34),\"\")","v":""},null,null,null,null,"Example:  B",null,17.45,null,2.12,null,{"$f":"SUM(W35:Y35)","v":19.57},null,710,null,{"$f":"SUM(AA35*AC35)","v":13894.7},null,0,null,{"$f":"SUM(AE35:AG35)","v":13894.7},null,{"$f":"SUM(AC35*$AE$25)","v":12701.9},null,{"$f":"MAX(0,SUM(AI35-AK35))","v":1192.8000000000011}]
[null,null,null,"C.","Personnel Salaries (Local funds)",null,null,null,null,null,null,null,null,null,null,null,null,null,null,null,"Example:  C*",null,9.9499999999999993,null,0,null,{"$f":"SUM(W36:Y36)","v":9.9499999999999993},null,920,null,{"$f":"SUM(AA36*AC36)","v":9154},null,1000,null,{"$f":"SUM(AE36:AG36)","v":10154},null,{"$f":"SUM(AC36*$AE$25)","v":16458.8},null,{"$f":"MAX(0,SUM(AI36-AK36))","v":0}]
[null,null,null,null,1,"Director",null,null,null,null,null,null,null,null,null,null,null,null,null,null,"Computation**",null,null,null,null,null,{"$f":"SUM(W37:Y37)","v":0},null,null,null,{"$f":"SUM(AA37*AC37)","v":0},null,null,null,{"$f":"SUM(AE37:AG37)","v":0},null,{"$f":"SUM(AC37*$AE$25)","v":0},null,{"$f":"MAX(0,SUM(AI37-AK37))","v":0}]
[null,null,null,null,null,"Name",null,"Title",null,"PRC/Object Code",null,"Local Salary",null,"Match Benefits"]
[null,null,null,null,null,null,null,null,null,null,null,0,null,null,null,null,null,null,null,null,"Notes:"]
[null,null,null,null,2,"Other Personnel",null,null,null,null,null,null,null,null,null,null,null,null,null,null,"*",null,"Line C, Column F - Represents a $100 supplement paid monthly for 10 months."]
[null,null,null,null,null,null,null,null,null,null,null,0,null,null,null,null,null,null,null,null,"**",null,"Computation line allows for data input, for an amount to be computed to be entered on line C2."]
[]
[]
[]
[]
[null,null,null,null,null,"Sub-Totals from continuation form:",null,null,null,null,null,{"$f":"IF(SUM('Local Expenditures. (Continued)'!L36)>0,SUM('Local Expenditures. (Continued)'!L36),\"\")","v":""},null,{"$f":"IF(SUM('Local Expenditures. (Continued)'!N36)>0,SUM('Local Expenditures. (Continued)'!N36),\"\")","v":""},null,null,null,null,null,{"$f":"IF(P35=\"\",\"Note:\nTransporation Personnel Line A & B  Input is required.  Please correct data entry.\",\"\")","v":"Note:\nTransporation Personnel Line A & B  Input is required.  Please correct data entry."}]
[null,null,null,null,null,"Totals:",null,null,null,null,null,{"$f":"IF(SUM(L41:L46),SUM(L41:L46),\"\")","v":""},null,{"$f":"IF(SUM(N41:N46),SUM(N41:N46),\"\")","v":""}]
[]
[null,null,null,"Finance Officer Certification",null,null,null,"All salaries listed in section C2 are directly related to the operation of \"yellow\" school buses for transporting students to and from school. Work performed by these individuals on non-state vehicles is refunded to PRC 056 or was not reported as a state or local PRC 056 expenditure.            "]
[]
[null,null,null,null,null,null,null,null,null,null,null,null,null,null,null,"(FO Initials)"]
[]
[]
[null,null,"Other Local Expenditures",null,null,null,null,null,null,null,null,"PRC/Object Code"]
[null,null,null,"A.","Fuel",null,null,null,null,null,null,null,null,0,null,null,null,null,null,{"$f":"IF(SUM(N55:N56)>0,\"Note ONLY (Not an Error):\nTD-24A forms must be on file at DPI to support the total expended for both state and local funds.\",\"\")","v":""}]
[null,null,null,"B.","Contract Transporation",null,null,null,null,null,null,null,null,0]
[null,null,null,"C.","Other Expenditures"]
[null,null,null,null,null,null,null,"Description",null,null,null,"PRC/Object Code",null,"Amt Expended"]
[null,null,null,null,null,null,null,null,null,null,null,null,null,0]
[]
[]
[]
[]
[null,null,null,null,null,"Sub-Total from continuation form:",null,null,null,null,null,null,null,{"$f":"SUM('Local Expenditures. (Continued)'!N70)","v":0}]
[null,null,null,null,null,"Total:",null,null,null,null,null,null,null,{"$f":"IF(SUM(N59:N64),SUM(N59:N64),\"\")","v":""}]
[]
[]
[]
[]
[]
[]
[]
[]
[]
[]
[]
[]
[]
[]
[]
[]
[]
[]
[]
[]
[]
[]
[]
[]
[]
[]
[]
[]
[]
[]
[]
[]
[]
[]
[]
[]
[]
[]
[]
[]
[]
[]
[]
[]
[]
[]
[]
[]
[]
[]
[]
[]
[null,null,null,null,null,"(Select)"]
[null,null,null,null,null,"Yes"]
[null,null,null,null,null,"No"]

{"sheet":"Local Expenditures. (Continued)","index":4,"n_rows":70,"n_cols":20,"rows_kept":70,"cut":false,"hidden":false,"merged":[[4,22,4,24],[2,2,2,7],[3,4,3,7],[35,5,35,9],[48,7,48,9],[39,7,39,9],[40,7,40,9],[41,7,41,9],[36,2,36,7],[42,7,42,9],[43,7,43,9],[37,4,37,7],[38,7,38,9],[44,7,44,9],[58,7,58,9],[54,7,54,9],[55,7,55,9],[56,7,56,9],[57,7,57,9],[67,7,67,9],[68,7,68,9],[69,5,69,11],[59,7,59,9],[60,7,60,9],[61,7,61,9],[62,7,62,9],[63,7,63,9],[64,7,64,9],[65,7,65,9],[66,7,66,9],[50,7,50,9],[51,7,51,9],[52,7,52,9],[53,7,53,9],[45,7,45,9],[46,7,46,9],[47,7,47,9],[49,7,49,9]]}
[]
[]
[null,null,"Transporation Personnel",null,null,null,null,null,null,null,null,null,null,null,null,null,null,null,null,"(Save, Email, and Print All options available on Accountability worksheet tab)"]
[null,null,null,"C.","Personnel Salaries (Local funds) (Continued)"]
[null,null,null,null,null,"Name",null,"Title",null,"PRC/Object Code",null,"Local Salary",null,"Match Benefits"]
[]
[]
[]
[]
[]
[]
[]
[]
[]
[]
[]
[]
[]
[]
[]
[]
[]
[]
[]
[]
[]
[]
[]
[]
[]
[]
[]
[]
[]
[]
[null,null,null,null,null,"Sub-Totals to Carry:",null,null,null,null,null,{"$f":"IF(SUM(L6:L35),SUM(L6:L35),\"\")","v":""},null,{"$f":"IF(SUM(N6:N35),SUM(N6:N35),\"\")","v":""}]
[null,null,"Other Local Expenditures"]
[null,null,null,"C.","Other Expenditures (Continued)"]
[null,null,null,null,null,null,null,"Description",null,null,null,"PRC/Object Code",null,"Amt Expended"]
[]
[]
[]
[]
[]
[]
[]
[]
[]
[]
[]
[]
[]
[]
[]
[]
[]
[]
[]
[]
[]
[]
[]
[]
[]
[]
[]
[]
[]
[]
[null,null,null,null,null,"Sub-Total:",null,null,null,null,null,null,null,{"$f":"IF(SUM(N40:N69),SUM(N40:N69),\"\")","v":""}]

{"sheet":"Policy Questionnaire","index":5,"n_rows":236,"n_cols":14,"rows_kept":236,"cut":false,"hidden":false,"merged":[[102,3,104,4],[47,4,48,4],[53,4,54,4],[36,5,36,6],[38,5,38,6],[40,5,40,6],[30,5,30,6],[42,5,42,6],[2,2,3,4],[8,5,8,6],[10,5,10,6],[12,5,12,6],[14,5,14,6],[16,5,16,6],[6,5,6,6],[5,3,5,4],[20,4,20,5],[24,4,24,5],[32,5,32,6],[34,5,34,6],[21,4,22,4],[6,3,6,4],[30,3,30,4],[4,5,5,6],[68,5,68,6],[78,5,78,6],[70,5,70,6],[72,5,72,6],[74,5,74,6],[76,5,76,6],[58,5,58,6],[60,5,60,6],[62,5,62,6],[64,5,64,6],[66,5,66,6],[121,5,121,6],[2,5,3,6],[126,5,126,6],[130,5,130,6],[46,3,46,5],[52,3,52,5],[58,3,58,4],[82,3,82,5],[90,3,90,5],[96,3,96,5],[113,3,113,4],[126,3,126,4],[109,5,109,6],[113,5,113,6],[115,5,115,6],[117,5,117,6],[119,5,119,6],[102,5,102,6],[104,5,104,6],[106,5,106,6],[98,5,98,6],[84,5,84,6],[86,5,86,6],[92,5,92,6],[134,5,134,6],[136,4,136,6],[138,5,138,6],[140,5,140,6],[134,3,134,4],[144,3,144,4],[128,4,128,6],[144,5,144,6],[146,5,146,6],[148,5,148,6],[150,5,150,6],[152,5,152,6],[154,5,154,6],[156,5,156,6],[158,5,158,6],[160,5,160,6],[162,5,162,6],[191,4,191,5],[166,5,166,6],[164,5,164,6],[192,4,193,4],[195,4,195,5],[182,5,182,6],[183,4,183,6],[185,4,185,6],[170,5,170,6],[172,4,172,6],[174,5,174,6],[176,5,176,6],[170,3,170,4],[178,3,178,6],[182,3,182,4],[187,4,187,6],[189,4,189,6],[223,3,223,4],[229,4,229,6],[231,4,231,6],[233,4,233,6],[235,4,235,6],[217,4,217,6],[219,4,219,6],[223,5,223,6],[225,4,225,6],[227,4,227,6],[207,5,207,6],[209,5,209,6],[213,5,213,6],[215,4,215,6],[196,4,197,4],[199,5,199,6],[201,4,201,6],[203,5,203,6],[205,4,205,6],[213,3,213,4]]}
[]
[]
[null,null,"POLICY QUESTIONNAIRE ",null,null,null,null,null,null,null,null,null,null,"DPI Official Use"]
[]
[null,null,null,null,null,"(Check all that apply)"]
[null,null,"A.","Who has the primary responsibility in your LEA for developing school bus",null,null,null,null,null,null,null,"(Save, Email, and Print All options available on Accountability worksheet tab)"]
[null,null,null,"routes, establishing bus stops and assigning students to buses?",null,"Superintendent/Asst. Superintendent",null,null,null,null,null,null,null,false]
[]
[null,null,null,null,null,"Transportation director"]
[]
[null,null,null,null,null,"Principals"]
[]
[null,null,null,null,null,"TIMS Coordinator"]
[]
[null,null,null,null,null,"Tranportation Supervisor"]
[]
[null,null,null,null,"Other:",null,null,null,null,null,null,null,null,{"$f":"IF(F17<>\"\",\"TRUE\",\"FALSE\")","v":"FALSE"}]
[]
[]
[]
[null,null,"B.","a.","Does your  LEA use a staggered bell time system? ",null,"Yes"]
[null,null,null,null,"(i.e. do some school start times differ by a half hour or more?)"]
[null,null,null,null,null,null,"No"]
[]
[null,null,null,"b."," If yes, is this primarily to facilitate transportation ",null,"Yes"]
[]
[null,null,null,null,null,null,"No"]
[]
[]
[]
[null,null,"C.","Who is involved in establishing school bell times in your LEA? ",null,"(Check all that apply)"]
[]
[null,null,null,null,null,"Superintendent/Asst. Superintendent"]
[]
[null,null,null,null,null,"Transportation director"]
[]
[null,null,null,null,null,"Principals"]
[]
[null,null,null,null,null,"TIMS Coordinator"]
[]
[null,null,null,null,null,"Transportation Supervisor"]
[]
[null,null,null,null,"Other:",null,null,null,null,null,null,null,null,{"$f":"IF(F43<>\"\",\"TRUE\",\"FALSE\")","v":"FALSE"}]
[]
[]
[]
[null,null,"D.","Do you permit buses travel to be routed on interstate highways?",null,null,"Yes"]
[]
[null,null,null,null,null,null,"No"]
[]
[]
[]
[null,null,"E.","Does your county have interstate highways?",null,null,"Yes"]
[]
[null,null,null,null,null,null,"No"]
[]
[]
[]
[null,null,"F.","For what types of alt. programs does your LEA provide transportation?",null,"(Check all that apply)"]
[]
[null,null,null,null,null,"At risk BEP"]
[]
[null,null,null,null,null,"Pre-K Handicapped"]
[]
[null,null,null,null,null,"Head Start"]
[]
[null,null,null,null,null,"At risk Remediation"]
[]
[null,null,null,null,null,"Migrant Education"]
[]
[null,null,null,null,null,"DARE Program"]
[]
[null,null,null,null,null,"Local Enrichment"]
[]
[null,null,null,null,null,"SOS Plus"]
[]
[null,null,null,null,null,"Vipers Program"]
[]
[null,null,null,null,"Other:",null,null,null,null,null,null,null,null,{"$f":"IF(F79<>\"\",\"TRUE\",\"FALSE\")","v":"FALSE"}]
[]
[]
[]
[null,null,"G.","What is your district goal for maximum ride times in minutes?  (One-way trip) ",null,null,"None"]
[]
[null,null,null,null,null,"Regular Students",null,null,null,null,null,null,null,{"$f":"SUM(I85)","v":0}]
[]
[null,null,null,null,null,"Special Education Students",null,null,null,null,null,null,null,{"$f":"SUM(I87)","v":0}]
[]
[]
[]
[null,null,"H.","What is the goal for earliest student boarding time?  (Time of day - ex:  5:45)",null,null,"A.M.",null,null,null,null,null,null,{"$f":"SUM(I91)","v":"00:00:00"}]
[]
[null,null,null,null,null,"None"]
[]
[]
[]
[null,null,"I.","What is the goal for latest student arrival at home? (Time of day - ex:  5:45)",null,null,"P.M.",null,null,null,null,null,null,{"$f":"SUM(I97)","v":"00:00:00"}]
[]
[null,null,null,null,null,"None"]
[]
[]
[]
[null,null,"J.","If you pair bus driving with additional duties in the LEA, estimate the % of total bus drivers that have these additional duties by type…..........................",null,"Food Service/Driver",null,null,null,null,null,null,null,{"$f":"SUM(I103)","v":0}]
[]
[null,null,null,null,null,"Custodial/Driver",null,null,null,null,null,null,null,{"$f":"SUM(I105)","v":0}]
[]
[null,null,null,null,null,"Teacher Assistant/Driver",null,null,null,null,null,null,null,{"$f":"SUM(I107)","v":0}]
[]
[]
[null,null,null,null,"Other:",null,null,null,null,null,null,null,null,{"$f":"IF(F110<>\"\",\"TRUE\",\"FALSE\")","v":"FALSE"}]
[]
[]
[]
[null,null,"K.","Employees Required to get School Bus Driver Certificate",null,"(Check all that apply)"]
[]
[null,null,null,null,null,"Food service"]
[]
[null,null,null,null,null,"Custodial"]
[]
[null,null,null,null,null,"Teacher Assistant"]
[]
[null,null,null,null,"Other:",null,null,null,null,null,null,null,null,{"$f":"IF(F122<>\"\",\"TRUE\",\"FALSE\")","v":"FALSE"}]
[]
[]
[]
[]
[null,null,"L.","Driver Screening and Criminal History Background Check",null,"(Check all that apply)"]
[]
[null,null,null,null,"Adopted Policy for Circumstances Driver Will be Subject to Criminal History Check "]
[]
[null,null,null,null,null,"Required for Pre-Employment"]
[]
[]
[]
[null,null,"M.","How often is background check(s) completed:",null,"Annual"]
[]
[null,null,null,null,"Semi-Annual"]
[]
[null,null,null,null,null,"Never"]
[]
[null,null,null,null,"Other:",null,null,null,null,null,null,null,null,{"$f":"IF(F122<>\"\",\"TRUE\",\"FALSE\")","v":"FALSE"}]
[]
[]
[]
[null,null,"N.","Types of background check(s)",null,"(Check all that apply)"]
[]
[null,null,null,null,null,"   Criminal Background Search"]
[]
[null,null,null,null,null,"   FBI Background Check"]
[]
[null,null,null,null,null,"   State Background Check"]
[]
[null,null,null,null,null,"   Local Background Check"]
[]
[null,null,null,null,null,"   National Background Check"]
[]
[null,null,null,null,null,"   Police Record Search"]
[]
[null,null,null,null,null,"   Sex Offender Search"]
[]
[null,null,null,null,null,"   Driving Record Search"]
[]
[null,null,null,null,null,"   Prison Inmate Search"]
[]
[null,null,null,null,null,"   Vehicle History Search"]
[]
[null,null,null,null,"Other:"]
[]
[]
[]
[null,null,"O.","How often is physical inventory completed?",null,"Annual"]
[]
[null,null,null,null,"Semi-Annual"]
[]
[null,null,null,null,null,"Never"]
[]
[null,null,null,null,"Other:",null,null,null,null,null,null,null,null,{"$f":"IF(F177<>\"\",\"TRUE\",\"FALSE\")","v":"FALSE"}]
[]
[null,null,"P.","How many individuals are assigned to inventory?",null,null,null,null,null,null,null,null,null,{"$f":"SUM(I179)","v":0}]
[]
[]
[]
[null,null,"Q.","TIMS (Number of Staff who work in TIMS)"]
[null,null,null,"a.","75% - 100% of their time?",null,null,null,null,null,null,null,null,{"$f":"SUM(I184)","v":0}]
[]
[null,null,null,"b.","50% - 74% of their time?",null,null,null,null,null,null,null,null,{"$f":"SUM(I186)","v":0}]
[]
[null,null,null,"c."," 25% - 49% of their time?",null,null,null,null,null,null,null,null,{"$f":"SUM(I188)","v":0}]
[]
[null,null,null,"d.","1% - 24% of their time?",null,null,null,null,null,null,null,null,{"$f":"SUM(I190)","v":0}]
[]
[null,null,null,"e.","Does a TIMS coordinator or data manager have editing capability in Powerschool?",null,"Yes"]
[]
[null,null,null,null,null,null,"No"]
[]
[null,null,null,"f.","If no, does a TIMS coordinator or data manager have read only access to Powerschool?",null,"Yes"]
[]
[null,null,null,null,null,null,"No"]
[]
[null,null,null,"g."," What is your student data upload schedule for TIMS?","Daily"]
[]
[null,null,null,null,"Weekly"]
[]
[null,null,null,null,null,"Monthly"]
[]
[null,null,null,null,"A few times per semester"]
[]
[null,null,null,null,null,"Twice a year"]
[]
[null,null,null,null,null,"Once a year"]
[]
[]
[]
[null,null,"R.","Charter Schools"]
[]
[null,null,null,"a.","If you transport any charter school students list number",null,null,null,null,null,null,null,null,{"$f":"SUM(I216)","v":0}]
[]
[null,null,null,"b.","If you have any buses delicated to charter school(s) only list number",null,null,null,null,null,null,null,null,{"$f":"SUM(I218)","v":0}]
[]
[null,null,null,"c.","If you maintain/service any charter school buses list number",null,null,null,null,null,null,null,null,{"$f":"SUM(I220)","v":0}]
[]
[]
[]
[null,null,"S.","Mechanic Classification and Average Salary"]
[]
[null,null,null,"a.","Mechanic I positions you have?",null,null,null,null,null,null,null,null,{"$f":"SUM(I226)","v":0}]
[]
[null,null,null,"b.","Mechanic II positions you have?",null,null,null,null,null,null,null,null,{"$f":"SUM(I228)","v":0}]
[]
[null,null,null,"c.","Mechanic III positions you have?",null,null,null,null,null,null,null,null,{"$f":"SUM(I230)","v":0}]
[]
[null,null,null,"d.","Mechanic I annual average salary",null,null,null,null,null,null,null,null,{"$f":"SUM(I232)","v":0}]
[]
[null,null,null,"e.","Mechanic II annual average salary",null,null,null,null,null,null,null,null,{"$f":"SUM(I234)","v":0}]
[]
[null,null,null,"f.","Mechanic III annual average salary",null,null,null,null,null,null,null,null,{"$f":"SUM(I236)","v":0}]

{"sheet":"Inventory","index":6,"n_rows":49,"n_cols":35,"rows_kept":49,"cut":false,"hidden":false,"merged":[[3,34,4,34],[2,21,2,23],[2,26,2,28],[3,8,4,8],[3,21,4,23],[3,18,4,18],[3,26,4,28],[2,2,4,4],[3,5,4,6],[2,5,2,6],[2,11,2,15],[3,11,3,15],[20,4,20,6],[21,4,21,6],[24,2,25,4],[23,13,23,15],[5,5,5,6],[18,4,18,6],[19,4,19,6],[16,2,17,4],[48,1,49,6],[32,4,32,11],[28,2,29,4],[31,4,31,11],[23,18,27,34],[30,18,30,21],[26,4,26,11],[27,13,27,15],[30,4,30,11],[30,23,31,28]]}
[]
[]
[null,null,"Stocked Inventory",null,null,"Charge Account code:",null,null,424,null,null,425,null,null,null,null,null,null,422,null,null,423,null,null,null,null,423,null,null,null,null,423]
[null,null,null,null,null,"Inventory Item:",null,null,"Oil",null,null,"Tires",null,null,null,null,null,null,"Parts \n(Repair)",null,null,"Diesel",null,null,null,null,"Unleaded",null,null,null,null,"Other",null,null,"Total"]
[null,null,null,null,null,null,null,null,null,null,null,"New",null,"Recap",null,"All",null,null,null,null,null,null,null,null,null,null,null,null,null,null,null,"Fuels & DEF"]
[null,null,null,null,null,"Type:",null,null,"Currency",null,null,"Quantity",null,"Quantity",null,"Currency",null,null,"Currency",null,null,"Quantity",null,"Currency",null,null,"Quantity",null,"Currency",null,null,"Currency",null,null,"Currency"]
[]
[null,null,null,"A.","Beginning",{"$f":"\"07/01/\"&(YEAR(TODAY())-1)","v":"07/01/2021"}," ",null,null,null,null,null,null,null,null,null,null,null,null,null,null,null,null,null,null,null,null,null,null,null,null,null,null,null,{"$f":"I8+P8+S8+X8+AC8+AF8","v":0}]
[null,null,null,"B.","Purchased","Fiscal Year"," ",null,null,null,null,null,null,null,null,null,null,null,null,null,null,null,null,null,null,null,null,null,null,null,null,null,null,null,0]
[null,null,null,"C.","Used ","Fiscal Year"," ",null,null,null,null,null,null,null,null,null,null,null,null,null,null,null,null,null,null,null,null,null,null,null,null,null,null,null,0]
[null,null,null,"D.","Ending (Actual)",{"$f":"\"06/30/\"&YEAR(TODAY())","v":"06/30/2022"}," ",null,null,null,null,null,null,null,null,null,null,null,null,null,null,null,null,null,null,null,null,null,null,null,null,null,null,null,0]
[null,null,null,"E.","Adjustment (Additions)","Fiscal Year"," ",null,null,null,null,null,null,null,null,null,null,null,null,null,null,null,null,null,null,null,null,null,null,null,null,null,null,null,0]
[null,null,null,"F.","Adjustment (Deletions)","Fiscal Year"," ",null,null,null,null,null,null,null,null,null,null,null,null,null,null,null,null,null,null,null,null,null,null,null,null,null,null,null,0]
[null,null,null,"G. ","Tranferred to/from another LEA","Fiscal Year"," ",null,null,null,null,null,null,null,null,null,null,null,null,null,null,null,null,null,null,null,null,null,null,null,null,null,null,null,0]
[null,null,null,"H.","Removed Obsolete/Damaged","Fiscal Year"," ",null,{"$f":"IF('Obsolete Inventory'!H5>0,'Obsolete Inventory'!H5,0)","v":0},null,null,null,null,null,null,{"$f":"'Obsolete Inventory'!H6","v":0},null,null,{"$f":"'Obsolete Inventory'!H7","v":0},null,null,{"$f":"'Obsolete Inventory'!G8","v":0},null,{"$f":"'Obsolete Inventory'!H8","v":0},null,null,{"$f":"'Obsolete Inventory'!G9","v":0},null,{"$f":"'Obsolete Inventory'!H9","v":0},null,null,{"$f":"'Obsolete Inventory'!H10","v":0},null,null,0]
[]
[null,null,"Summary Analysis"]
[]
[null,null,null,"A.","Variance in Ending and Beginning Stock (Ln D minus Ln A)",null,null,null,{"$f":"I11-I8","v":0},null,null,{"$f":"L11-L8","v":0},null,{"$f":"N11-N8","v":0},null,{"$f":"P11-P8","v":0},null,null,{"$f":"S11-S8","v":0},null,null,{"$f":"V11-V8","v":0},null,{"$f":"X11-X8","v":0},null,null,{"$f":"AA11-AA8","v":0},null,{"$f":"AC11-AC8","v":0},null,null,{"$f":"AF11-AF8","v":0},null,null,{"$f":"AI11-AI8","v":0}]
[null,null,null,"B.","Data Validility Check* (See Instructions)",null,null,null,{"$f":"I11-(I8+I9-I10+I12-I13-I15+I14)","v":0},null,null,{"$f":"L11-(L8+L9-L10+L12-L13-L15+L14)","v":0},null,{"$f":"N11-(N8+N9-N10+N12-N13-N15+N14)","v":0},null,{"$f":"P11-(P8+P9-P10+P12-P13-P15+P14)","v":0},null,null,{"$f":"S11-(S8+S9-S10+S12-S13-S15+S14)","v":0},null,null,{"$f":"V11-(V8+V9-V10+V12-V13-V15+V14)","v":0},null,{"$f":"X11-(X8+X9-X10+X12-X13-X15+X14)","v":0},null,null,{"$f":"AA11-(AA8+AA9-AA10+AA12-AA13-AA15+AA14)","v":0},null,{"$f":"AC11-(AC8+AC9-AC10+AC12-AC13-AC15+AC14)","v":0},null,null,{"$f":"AF11-(AF8+AF9-AF10+AF12-AF13-AF15+AF14)","v":0},null,null,{"$f":"AI11-(AI8+AI9-AI10+AI12-AI13-AI15+AI14)","v":0}]
[null,null,null,"C.","Inventory Adjustment (Increases) as % of Usage",null,null,null,{"$f":"IF(I10=0,\"\",I12/I10)","v":""},null,null,{"$f":"IF(L10=0,\"\",L12/L10)","v":""},null,{"$f":"IF(N10=0,\"\",N12/N10)","v":""},null,{"$f":"IF(P10=0,\"\",P12/P10)","v":""},null,null,{"$f":"IF(S10=0,\"\",S12/S10)","v":""},null,null,{"$f":"IF(V10=0,\"\",V12/V10)","v":""},null,{"$f":"IF(X10=0,\"\",X12/X10)","v":""},null,null,{"$f":"IF(AA10=0,\"\",AA12/AA10)","v":""},null,{"$f":"IF(AC10=0,\"\",AC12/AC10)","v":""},null,null,{"$f":"IF(AF10=0,\"\",AF12/AF10)","v":""},null,null,{"$f":"IF(AI10=0,\"\",AI12/AI10)","v":""}]
[null,null,null,"D.","Inventory Adjustment (Losses) as % of Usage",null,null,null,{"$f":"IF(I10=0,\"\",I13/I10)","v":""},null,null,{"$f":"IF(L10=0,\"\",L13/L10)","v":""},null,{"$f":"IF(N10=0,\"\",N13/N10)","v":""},null,{"$f":"IF(P10=0,\"\",P13/P10)","v":""},null,null,{"$f":"IF(S10=0,\"\",S13/S10)","v":""},null,null,{"$f":"IF(V10=0,\"\",V13/V10)","v":""},null,{"$f":"IF(X10=0,\"\",X13/X10)","v":""},null,null,{"$f":"IF(AA10=0,\"\",AA13/AA10)","v":""},null,{"$f":"IF(AC10=0,\"\",AC13/AC10)","v":""},null,null,{"$f":"IF(AF10=0,\"\",AF13/AF10)","v":""},null,null,{"$f":"IF(AI10=0,\"\",AI13/AI10)","v":""}]
[]
[null,null,null,null,null,null,null,null,null,null,null,null,null,"Non-Stock Inventory",null,null,null,null,"Summary Analysis:\nLine A is the difference between what your beginning/ending fiscal year balances.\n\nLine B indicates whether the values pulled are correct; if  differences recheck the numbers. Small differences can be ignored."]
[null,null,"Non-Stock Inventory",null,null,null,null,null,null,null,null,null,null,"Quantity",null,"Currency"]
[]
[null,null,null,"A.","Inventory Purchased"]
[]
[null,null,"Engine Replacement",null,null,null,null,null,null,null,null,null,null,"Quantity"]
[]
[null,null,null,"A.","Replaced under warranty",null,null,null,null,null,null,null,null,null,null,null,null,null,"  Finance Officer Certification",null,null,null,null,"This is to certify that an annual physical inventory of parts was completed by June 30, of the fiscal year."]
[null,null,null,"B.","Replaced non-warranty"]
[null,null,null,"C.","Total replaced",null,null,null,null,null,null,null,null,{"$f":"SUM(N31:N32)","v":0},null,null,null,null,null,null,null,null,null,null,null,null,null,null,null,null,null,"(Initials)"]
[]
[]
[]
[]
[]
[]
[]
[]
[]
[]
[]
[]
[]
[]
[]
[null,"(Save, Email, and Print All options \navailable on Accountability worksheet tab)"]

{"sheet":"Obsolete Inventory","index":7,"n_rows":515,"n_cols":19,"rows_kept":515,"cut":false,"hidden":false,"merged":[[2,4,3,5],[2,6,2,7],[11,4,12,4],[11,6,12,6],[11,9,12,9],[11,8,12,8],[11,7,12,7],[11,5,12,5]]}
[]
[]
[null,null,null,null,"Obsolete or Damaged Stock",null,"Summary Information",null,null,null,null,null,null,"(Save, Email, and Print All options available on Accountability worksheet tab)"]
[null,null,null,null,null,null,"Quantity","Value"]
[null,null,null,null,null,"Oil",{"$f":"SUMIF($J$14:$J$513,F5,G$14:G$513)","v":0},{"$f":"SUMIF($J$14:$J$513,F5,H$14:H$513)","v":0}]
[null,null,null,null,null,"Tires",{"$f":"SUMIF($J$14:$J$513,F6,G$14:G$513)","v":0},{"$f":"IF(SUMIF($J$14:$J$513,F6,H$14:H$513),SUMIF($J$14:$J$513,F6,H$14:H$513),0)","v":0}]
[null,null,null,null,null,"Repair Parts",{"$f":"SUMIF($J$14:$J$513,F7,G$14:G$513)","v":0},{"$f":"IF(SUMIF($J$14:$J$513,F7,H$14:H$513),SUMIF($J$14:$J$513,F7,H$14:H$513),0)","v":0}]
[null,null,null,null,null,"Diesel",{"$f":"IF(SUMIF($J$14:$J$513,F8,G$14:G$513),SUMIF($J$14:$J$513,F8,G$14:G$513),0)","v":0},{"$f":"IF(SUMIF($J$14:$J$513,F8,H$14:H$513),SUMIF($J$14:$J$513,F8,H$14:H$513),0)","v":0}]
[null,null,null,null,null,"Gasoline",{"$f":"IF(SUMIF($J$14:$J$513,F9,G$14:G$513),SUMIF($J$14:$J$513,F9,G$14:G$513),0)","v":0},{"$f":"IF(SUMIF($J$14:$J$513,F9,H$14:H$513),SUMIF($J$14:$J$513,F9,H$14:H$513),0)","v":0}]
[null,null,null,null,null,"Other Fuels / DEF",{"$f":"IF(SUMIF($J$14:$J$513,F10,G$14:G$513),SUMIF($J$14:$J$513,F10,G$14:G$513),0)","v":0},{"$f":"IF(SUMIF($J$14:$J$513,F10,H$14:H$513),SUMIF($J$14:$J$513,F10,H$14:H$513),0)","v":0}]
[]
[null,null,null,null,"DOT\nNumber","BSIP Part Description","Quantity\nRemoved","Total Value of\nStock Removed","Obsolete \nor Damaged","Group \nType"]
[null,null,null,null,null,null,null,null,null,null,null,null,null,null,null,null,null,null,"Oil Group Check"]
[null,null,{"$f":"ROW()-13","v":1},null,null,null,null,null,null,{"$f":"IF(ISBLANK(E14),\"\",IF(S14<>\"\",S14,IF(ISERROR(INT(LEFT(E14,3))),\"Repair Parts\",IF(OR(INT(LEFT(E14,3))=155,INT(LEFT(E14,3))>159),\"Repair Parts\",IF(INT(LEFT(E14,3))=150,\"Tires\",\"UNKNOWN\")))))","v":""},null,null,null,null,null,null,null,null,{"$f":"IF(ISERROR(INT(LEFT(E14,3))),\"\",IF(INT(LEFT(E14,3))=159,IF(AND(INT(LEFT(E14,3))=159,INT(E14)<>159000098,INT(E14)<>159000099,OR(AND(INT(E14)>=159000000,INT(E14)<=159000051),INT(E14)>159000062)),\"Oil\",IF(INT(E14)=159000054,\"Diesel\",IF(INT(E14)=159000055,\"Gasoline\",IF(INT(LEFT(E14,3))=159,\"Other Fuels / DEF\")))),\"\"))","v":""}]
[null,null,{"$f":"ROW()-13","v":2},null,null,null,null,null,null,{"$f":"IF(ISBLANK(E15),\"\",IF(S15<>\"\",S15,IF(ISERROR(INT(LEFT(E15,3))),\"Repair Parts\",IF(OR(INT(LEFT(E15,3))=155,INT(LEFT(E15,3))>159),\"Repair Parts\",IF(INT(LEFT(E15,3))=150,\"Tires\",\"UNKNOWN\")))))","v":""},null,null,null,null,null,null,null,null,""]
[null,null,3,null,null,null,null,null,null,{"$f":"IF(ISBLANK(E16),\"\",IF(S16<>\"\",S16,IF(ISERROR(INT(LEFT(E16,3))),\"Repair Parts\",IF(OR(INT(LEFT(E16,3))=155,INT(LEFT(E16,3))>159),\"Repair Parts\",IF(INT(LEFT(E16,3))=150,\"Tires\",\"UNKNOWN\")))))","v":""},null,null,null,null,null,null,null,null,""]
[null,null,4,null,null,null,null,null,null,{"$f":"IF(ISBLANK(E17),\"\",IF(S17<>\"\",S17,IF(ISERROR(INT(LEFT(E17,3))),\"Repair Parts\",IF(OR(INT(LEFT(E17,3))=155,INT(LEFT(E17,3))>159),\"Repair Parts\",IF(INT(LEFT(E17,3))=150,\"Tires\",\"UNKNOWN\")))))","v":""},null,null,null,null,null,null,null,null,""]
[null,null,5,null,null,null,null,null,null,{"$f":"IF(ISBLANK(E18),\"\",IF(S18<>\"\",S18,IF(ISERROR(INT(LEFT(E18,3))),\"Repair Parts\",IF(OR(INT(LEFT(E18,3))=155,INT(LEFT(E18,3))>159),\"Repair Parts\",IF(INT(LEFT(E18,3))=150,\"Tires\",\"UNKNOWN\")))))","v":""},null,null,null,null,null,null,null,null,""]
[null,null,6,null,null,null,null,null,null,"",null,null,null,null,null,null,null,null,""]
[null,null,7,null,null,null,null,null,null,"",null,null,null,null,null,null,null,null,""]
[null,null,8,null,null,null,null,null,null,"",null,null,null,null,null,null,null,null,""]
[null,null,9,null,null,null,null,null,null,"",null,null,null,null,null,null,null,null,""]
[null,null,10,null,null,null,null,null,null,"",null,null,null,null,null,null,null,null,""]
[null,null,11,null,null,null,null,null,null,"",null,null,null,null,null,null,null,null,""]
[null,null,12,null,null,null,null,null,null,"",null,null,null,null,null,null,null,null,""]
[null,null,13,null,null,null,null,null,null,"",null,null,null,null,null,null,null,null,""]
[null,null,14,null,null,null,null,null,null,"",null,null,null,null,null,null,null,null,""]
[null,null,15,null,null,null,null,null,null,""]
[null,null,16,null,null,null,null,null,null,""]
[null,null,17,null,null,null,null,null,null,""]
[null,null,18,null,null,null,null,null,null,""]
[null,null,19,null,null,null,null,null,null,""]
[null,null,20,null,null,null,null,null,null,""]
[null,null,21,null,null,null,null,null,null,""]
[null,null,22,null,null,null,null,null,null,""]
[null,null,23,null,null,null,null,null,null,""]
[null,null,24,null,null,null,null,null,null,""]
[null,null,25,null,null,null,null,null,null,"",null,null,null,null,null,null,null,null,""]
[null,null,26,null,null,null,null,null,null,"",null,null,null,null,null,null,null,null,""]
[null,null,27,null,null,null,null,null,null,"",null,null,null,null,null,null,null,null,""]
[null,null,28,null,null,null,null,null,null,"",null,null,null,null,null,null,null,null,""]
[null,null,29,null,null,null,null,null,null,"",null,null,null,null,null,null,null,null,""]
[null,null,30,null,null,null,null,null,null,"",null,null,null,null,null,null,null,null,""]
[null,null,31,null,null,null,null,null,null,"",null,null,null,null,null,null,null,null,""]
[null,null,32,null,null,null,null,null,null,"",null,null,null,null,null,null,null,null,""]
[null,null,33,null,null,null,null,null,null,"",null,null,null,null,null,null,null,null,""]
[null,null,34,null,null,null,null,null,null,"",null,null,null,null,null,null,null,null,""]
[null,null,35,null,null,null,null,null,null,"",null,null,null,null,null,null,null,null,""]
[null,null,36,null,null,null,null,null,null,"",null,null,null,null,null,null,null,null,""]
[null,null,37,null,null,null,null,null,null,"",null,null,null,null,null,null,null,null,""]
[null,null,38,null,null,null,null,null,null,"",null,null,null,null,null,null,null,null,""]
[null,null,39,null,null,null,null,null,null,"",null,null,null,null,null,null,null,null,""]
[null,null,40,null,null,null,null,null,null,"",null,null,null,null,null,null,null,null,""]
[null,null,41,null,null,null,null,null,null,"",null,null,null,null,null,null,null,null,""]
[null,null,42,null,null,null,null,null,null,"",null,null,null,null,null,null,null,null,""]
[null,null,43,null,null,null,null,null,null,"",null,null,null,null,null,null,null,null,""]
[null,null,44,null,null,null,null,null,null,"",null,null,null,null,null,null,null,null,""]
[null,null,45,null,null,null,null,null,null,"",null,null,null,null,null,null,null,null,""]
[null,null,46,null,null,null,null,null,null,"",null,null,null,null,null,null,null,null,""]
[null,null,47,null,null,null,null,null,null,"",null,null,null,null,null,null,null,null,""]
[null,null,48,null,null,null,null,null,null,"",null,null,null,null,null,null,null,null,""]
[null,null,49,null,null,null,null,null,null,"",null,null,null,null,null,null,null,null,""]
[null,null,50,null,null,null,null,null,null,"",null,null,null,null,null,null,null,null,""]
[null,null,51,null,null,null,null,null,null,"",null,null,null,null,null,null,null,null,""]
[null,null,52,null,null,null,null,null,null,"",null,null,null,null,null,null,null,null,""]
[null,null,53,null,null,null,null,null,null,"",null,null,null,null,null,null,null,null,""]
[null,null,54,null,null,null,null,null,null,"",null,null,null,null,null,null,null,null,""]
[null,null,55,null,null,null,null,null,null,"",null,null,null,null,null,null,null,null,""]
[null,null,56,null,null,null,null,null,null,"",null,null,null,null,null,null,null,null,""]
[null,null,57,null,null,null,null,null,null,"",null,null,null,null,null,null,null,null,""]
[null,null,58,null,null,null,null,null,null,"",null,null,null,null,null,null,null,null,""]
[null,null,59,null,null,null,null,null,null,"",null,null,null,null,null,null,null,null,""]
[null,null,60,null,null,null,null,null,null,"",null,null,null,null,null,null,null,null,""]
[null,null,61,null,null,null,null,null,null,"",null,null,null,null,null,null,null,null,""]
[null,null,62,null,null,null,null,null,null,"",null,null,null,null,null,null,null,null,""]
[null,null,63,null,null,null,null,null,null,"",null,null,null,null,null,null,null,null,""]
[null,null,64,null,null,null,null,null,null,"",null,null,null,null,null,null,null,null,""]
[null,null,65,null,null,null,null,null,null,{"$f":"IF(ISBLANK(E78),\"\",IF(S78<>\"\",S78,IF(ISERROR(INT(LEFT(E78,3))),\"Repair Parts\",IF(OR(INT(LEFT(E78,3))=155,INT(LEFT(E78,3))>159),\"Repair Parts\",IF(INT(LEFT(E78,3))=150,\"Tires\",\"UNKNOWN\")))))","v":""},null,null,null,null,null,null,null,null,{"$f":"IF(ISERROR(INT(LEFT(E78,3))),\"\",IF(INT(LEFT(E78,3))=159,IF(AND(INT(LEFT(E78,3))=159,INT(E78)<>159000098,INT(E78)<>159000099,OR(AND(INT(E78)>=159000000,INT(E78)<=159000051),INT(E78)>159000062)),\"Oil\",IF(INT(E78)=159000054,\"Diesel\",IF(INT(E78)=159000055,\"Gasoline\",IF(INT(LEFT(E78,3))=159,\"Other Fuels / DEF\")))),\"\"))","v":""}]
[null,null,{"$f":"ROW()-13","v":66},null,null,null,null,null,null,"",null,null,null,null,null,null,null,null,""]
[null,null,67,null,null,null,null,null,null,"",null,null,null,null,null,null,null,null,""]
[null,null,68,null,null,null,null,null,null,"",null,null,null,null,null,null,null,null,""]
[null,null,69,null,null,null,null,null,null,"",null,null,null,null,null,null,null,null,""]
[null,null,70,null,null,null,null,null,null,"",null,null,null,null,null,null,null,null,""]
[null,null,71,null,null,null,null,null,null,"",null,null,null,null,null,null,null,null,""]
[null,null,72,null,null,null,null,null,null,"",null,null,null,null,null,null,null,null,""]
[null,null,73,null,null,null,null,null,null,"",null,null,null,null,null,null,null,null,""]
[null,null,74,null,null,null,null,null,null,"",null,null,null,null,null,null,null,null,""]
[null,null,75,null,null,null,null,null,null,"",null,null,null,null,null,null,null,null,""]
[null,null,76,null,null,null,null,null,null,"",null,null,null,null,null,null,null,null,""]
[null,null,77,null,null,null,null,null,null,"",null,null,null,null,null,null,null,null,""]
[null,null,78,null,null,null,null,null,null,"",null,null,null,null,null,null,null,null,""]
[null,null,79,null,null,null,null,null,null,"",null,null,null,null,null,null,null,null,""]
[null,null,80,null,null,null,null,null,null,"",null,null,null,null,null,null,null,null,""]
[null,null,81,null,null,null,null,null,null,"",null,null,null,null,null,null,null,null,""]
[null,null,82,null,null,null,null,null,null,"",null,null,null,null,null,null,null,null,""]
[null,null,83,null,null,null,null,null,null,"",null,null,null,null,null,null,null,null,""]
[null,null,84,null,null,null,null,null,null,"",null,null,null,null,null,null,null,null,""]
[null,null,85,null,null,null,null,null,null,"",null,null,null,null,null,null,null,null,""]
[null,null,86,null,null,null,null,null,null,"",null,null,null,null,null,null,null,null,""]
[null,null,87,null,null,null,null,null,null,"",null,null,null,null,null,null,null,null,""]
[null,null,88,null,null,null,null,null,null,"",null,null,null,null,null,null,null,null,""]
[null,null,89,null,null,null,null,null,null,"",null,null,null,null,null,null,null,null,""]
[null,null,90,null,null,null,null,null,null,"",null,null,null,null,null,null,null,null,""]
[null,null,91,null,null,null,null,null,null,"",null,null,null,null,null,null,null,null,""]
[null,null,92,null,null,null,null,null,null,"",null,null,null,null,null,null,null,null,""]
[null,null,93,null,null,null,null,null,null,"",null,null,null,null,null,null,null,null,""]
[null,null,94,null,null,null,null,null,null,"",null,null,null,null,null,null,null,null,""]
[null,null,95,null,null,null,null,null,null,"",null,null,null,null,null,null,null,null,""]
[null,null,96,null,null,null,null,null,null,"",null,null,null,null,null,null,null,null,""]
[null,null,97,null,null,null,null,null,null,"",null,null,null,null,null,null,null,null,""]
[null,null,98,null,null,null,null,null,null,"",null,null,null,null,null,null,null,null,""]
[null,null,99,null,null,null,null,null,null,"",null,null,null,null,null,null,null,null,""]
[null,null,100,null,null,null,null,null,null,"",null,null,null,null,null,null,null,null,""]
[null,null,101,null,null,null,null,null,null,"",null,null,null,null,null,null,null,null,""]
[null,null,102,null,null,null,null,null,null,"",null,null,null,null,null,null,null,null,""]
[null,null,103,null,null,null,null,null,null,"",null,null,null,null,null,null,null,null,""]
[null,null,104,null,null,null,null,null,null,"",null,null,null,null,null,null,null,null,""]
[null,null,105,null,null,null,null,null,null,"",null,null,null,null,null,null,null,null,""]
[null,null,106,null,null,null,null,null,null,"",null,null,null,null,null,null,null,null,""]
[null,null,107,null,null,null,null,null,null,"",null,null,null,null,null,null,null,null,""]
[null,null,108,null,null,null,null,null,null,"",null,null,null,null,null,null,null,null,""]
[null,null,109,null,null,null,null,null,null,"",null,null,null,null,null,null,null,null,""]
[null,null,110,null,null,null,null,null,null,"",null,null,null,null,null,null,null,null,""]
[null,null,111,null,null,null,null,null,null,"",null,null,null,null,null,null,null,null,""]
[null,null,112,null,null,null,null,null,null,"",null,null,null,null,null,null,null,null,""]
[null,null,113,null,null,null,null,null,null,"",null,null,null,null,null,null,null,null,""]
[null,null,114,null,null,null,null,null,null,"",null,null,null,null,null,null,null,null,""]
[null,null,115,null,null,null,null,null,null,"",null,null,null,null,null,null,null,null,""]
[null,null,116,null,null,null,null,null,null,"",null,null,null,null,null,null,null,null,""]
[null,null,117,null,null,null,null,null,null,"",null,null,null,null,null,null,null,null,""]
[null,null,118,null,null,null,null,null,null,"",null,null,null,null,null,null,null,null,""]
[null,null,119,null,null,null,null,null,null,"",null,null,null,null,null,null,null,null,""]
[null,null,120,null,null,null,null,null,null,"",null,null,null,null,null,null,null,null,""]
[null,null,121,null,null,null,null,null,null,"",null,null,null,null,null,null,null,null,""]
[null,null,122,null,null,null,null,null,null,"",null,null,null,null,null,null,null,null,""]
[null,null,123,null,null,null,null,null,null,"",null,null,null,null,null,null,null,null,""]
[null,null,124,null,null,null,null,null,null,"",null,null,null,null,null,null,null,null,""]
[null,null,125,null,null,null,null,null,null,"",null,null,null,null,null,null,null,null,""]
[null,null,126,null,null,null,null,null,null,"",null,null,null,null,null,null,null,null,""]
[null,null,127,null,null,null,null,null,null,"",null,null,null,null,null,null,null,null,""]
[null,null,128,null,null,null,null,null,null,"",null,null,null,null,null,null,null,null,""]
[null,null,129,null,null,null,null,null,null,{"$f":"IF(ISBLANK(E142),\"\",IF(S142<>\"\",S142,IF(ISERROR(INT(LEFT(E142,3))),\"Repair Parts\",IF(OR(INT(LEFT(E142,3))=155,INT(LEFT(E142,3))>159),\"Repair Parts\",IF(INT(LEFT(E142,3))=150,\"Tires\",\"UNKNOWN\")))))","v":""},null,null,null,null,null,null,null,null,{"$f":"IF(ISERROR(INT(LEFT(E142,3))),\"\",IF(INT(LEFT(E142,3))=159,IF(AND(INT(LEFT(E142,3))=159,INT(E142)<>159000098,INT(E142)<>159000099,OR(AND(INT(E142)>=159000000,INT(E142)<=159000051),INT(E142)>159000062)),\"Oil\",IF(INT(E142)=159000054,\"Diesel\",IF(INT(E142)=159000055,\"Gasoline\",IF(INT(LEFT(E142,3))=159,\"Other Fuels / DEF\")))),\"\"))","v":""}]
[null,null,{"$f":"ROW()-13","v":130},null,null,null,null,null,null,"",null,null,null,null,null,null,null,null,""]
[null,null,131,null,null,null,null,null,null,"",null,null,null,null,null,null,null,null,""]
[null,null,132,null,null,null,null,null,null,"",null,null,null,null,null,null,null,null,""]
[null,null,133,null,null,null,null,null,null,"",null,null,null,null,null,null,null,null,""]
[null,null,134,null,null,null,null,null,null,"",null,null,null,null,null,null,null,null,""]
[null,null,135,null,null,null,null,null,null,"",null,null,null,null,null,null,null,null,""]
[null,null,136,null,null,null,null,null,null,"",null,null,null,null,null,null,null,null,""]
[null,null,137,null,null,null,null,null,null,"",null,null,null,null,null,null,null,null,""]
[null,null,138,null,null,null,null,null,null,"",null,null,null,null,null,null,null,null,""]
[null,null,139,null,null,null,null,null,null,"",null,null,null,null,null,null,null,null,""]
[null,null,140,null,null,null,null,null,null,"",null,null,null,null,null,null,null,null,""]
[null,null,141,null,null,null,null,null,null,"",null,null,null,null,null,null,null,null,""]
[null,null,142,null,null,null,null,null,null,"",null,null,null,null,null,null,null,null,""]
[null,null,143,null,null,null,null,null,null,"",null,null,null,null,null,null,null,null,""]
[null,null,144,null,null,null,null,null,null,"",null,null,null,null,null,null,null,null,""]
[null,null,145,null,null,null,null,null,null,"",null,null,null,null,null,null,null,null,""]
[null,null,146,null,null,null,null,null,null,"",null,null,null,null,null,null,null,null,""]
[null,null,147,null,null,null,null,null,null,"",null,null,null,null,null,null,null,null,""]
[null,null,148,null,null,null,null,null,null,"",null,null,null,null,null,null,null,null,""]
[null,null,149,null,null,null,null,null,null,"",null,null,null,null,null,null,null,null,""]
[null,null,150,null,null,null,null,null,null,"",null,null,null,null,null,null,null,null,""]
[null,null,151,null,null,null,null,null,null,"",null,null,null,null,null,null,null,null,""]
[null,null,152,null,null,null,null,null,null,"",null,null,null,null,null,null,null,null,""]
[null,null,153,null,null,null,null,null,null,"",null,null,null,null,null,null,null,null,""]
[null,null,154,null,null,null,null,null,null,"",null,null,null,null,null,null,null,null,""]
[null,null,155,null,null,null,null,null,null,"",null,null,null,null,null,null,null,null,""]
[null,null,156,null,null,null,null,null,null,"",null,null,null,null,null,null,null,null,""]
[null,null,157,null,null,null,null,null,null,"",null,null,null,null,null,null,null,null,""]
[null,null,158,null,null,null,null,null,null,"",null,null,null,null,null,null,null,null,""]
[null,null,159,null,null,null,null,null,null,"",null,null,null,null,null,null,null,null,""]
[null,null,160,null,null,null,null,null,null,"",null,null,null,null,null,null,null,null,""]
[null,null,161,null,null,null,null,null,null,"",null,null,null,null,null,null,null,null,""]
[null,null,162,null,null,null,null,null,null,"",null,null,null,null,null,null,null,null,""]
[null,null,163,null,null,null,null,null,null,"",null,null,null,null,null,null,null,null,""]
[null,null,164,null,null,null,null,null,null,"",null,null,null,null,null,null,null,null,""]
[null,null,165,null,null,null,null,null,null,"",null,null,null,null,null,null,null,null,""]
[null,null,166,null,null,null,null,null,null,"",null,null,null,null,null,null,null,null,""]
[null,null,167,null,null,null,null,null,null,"",null,null,null,null,null,null,null,null,""]
[null,null,168,null,null,null,null,null,null,"",null,null,null,null,null,null,null,null,""]
[null,null,169,null,null,null,null,null,null,"",null,null,null,null,null,null,null,null,""]
[null,null,170,null,null,null,null,null,null,"",null,null,null,null,null,null,null,null,""]
[null,null,171,null,null,null,null,null,null,"",null,null,null,null,null,null,null,null,""]
[null,null,172,null,null,null,null,null,null,"",null,null,null,null,null,null,null,null,""]
[null,null,173,null,null,null,null,null,null,"",null,null,null,null,null,null,null,null,""]
[null,null,174,null,null,null,null,null,null,"",null,null,null,null,null,null,null,null,""]
[null,null,175,null,null,null,null,null,null,"",null,null,null,null,null,null,null,null,""]
[null,null,176,null,null,null,null,null,null,"",null,null,null,null,null,null,null,null,""]
[null,null,177,null,null,null,null,null,null,"",null,null,null,null,null,null,null,null,""]
[null,null,178,null,null,null,null,null,null,"",null,null,null,null,null,null,null,null,""]
[null,null,179,null,null,null,null,null,null,"",null,null,null,null,null,null,null,null,""]
[null,null,180,null,null,null,null,null,null,"",null,null,null,null,null,null,null,null,""]
[null,null,181,null,null,null,null,null,null,"",null,null,null,null,null,null,null,null,""]
[null,null,182,null,null,null,null,null,null,"",null,null,null,null,null,null,null,null,""]
[null,null,183,null,null,null,null,null,null,"",null,null,null,null,null,null,null,null,""]
[null,null,184,null,null,null,null,null,null,"",null,null,null,null,null,null,null,null,""]
[null,null,185,null,null,null,null,null,null,"",null,null,null,null,null,null,null,null,""]
[null,null,186,null,null,null,null,null,null,"",null,null,null,null,null,null,null,null,""]
[null,null,187,null,null,null,null,null,null,"",null,null,null,null,null,null,null,null,""]
[null,null,188,null,null,null,null,null,null,"",null,null,null,null,null,null,null,null,""]
[null,null,189,null,null,null,null,null,null,"",null,null,null,null,null,null,null,null,""]
[null,null,190,null,null,null,null,null,null,"",null,null,null,null,null,null,null,null,""]
[null,null,191,null,null,null,null,null,null,"",null,null,null,null,null,null,null,null,""]
[null,null,192,null,null,null,null,null,null,"",null,null,null,null,null,null,null,null,""]
[null,null,193,null,null,null,null,null,null,{"$f":"IF(ISBLANK(E206),\"\",IF(S206<>\"\",S206,IF(ISERROR(INT(LEFT(E206,3))),\"Repair Parts\",IF(OR(INT(LEFT(E206,3))=155,INT(LEFT(E206,3))>159),\"Repair Parts\",IF(INT(LEFT(E206,3))=150,\"Tires\",\"UNKNOWN\")))))","v":""},null,null,null,null,null,null,null,null,{"$f":"IF(ISERROR(INT(LEFT(E206,3))),\"\",IF(INT(LEFT(E206,3))=159,IF(AND(INT(LEFT(E206,3))=159,INT(E206)<>159000098,INT(E206)<>159000099,OR(AND(INT(E206)>=159000000,INT(E206)<=159000051),INT(E206)>159000062)),\"Oil\",IF(INT(E206)=159000054,\"Diesel\",IF(INT(E206)=159000055,\"Gasoline\",IF(INT(LEFT(E206,3))=159,\"Other Fuels / DEF\")))),\"\"))","v":""}]
[null,null,{"$f":"ROW()-13","v":194},null,null,null,null,null,null,"",null,null,null,null,null,null,null,null,""]
[null,null,195,null,null,null,null,null,null,"",null,null,null,null,null,null,null,null,""]
[null,null,196,null,null,null,null,null,null,"",null,null,null,null,null,null,null,null,""]
[null,null,197,null,null,null,null,null,null,"",null,null,null,null,null,null,null,null,""]
[null,null,198,null,null,null,null,null,null,"",null,null,null,null,null,null,null,null,""]
[null,null,199,null,null,null,null,null,null,"",null,null,null,null,null,null,null,null,""]
[null,null,200,null,null,null,null,null,null,"",null,null,null,null,null,null,null,null,""]
[null,null,201,null,null,null,null,null,null,"",null,null,null,null,null,null,null,null,""]
[null,null,202,null,null,null,null,null,null,"",null,null,null,null,null,null,null,null,""]
[null,null,203,null,null,null,null,null,null,"",null,null,null,null,null,null,null,null,""]
[null,null,204,null,null,null,null,null,null,"",null,null,null,null,null,null,null,null,""]
[null,null,205,null,null,null,null,null,null,"",null,null,null,null,null,null,null,null,""]
[null,null,206,null,null,null,null,null,null,"",null,null,null,null,null,null,null,null,""]
[null,null,207,null,null,null,null,null,null,"",null,null,null,null,null,null,null,null,""]
[null,null,208,null,null,null,null,null,null,"",null,null,null,null,null,null,null,null,""]
[null,null,209,null,null,null,null,null,null,"",null,null,null,null,null,null,null,null,""]
[null,null,210,null,null,null,null,null,null,"",null,null,null,null,null,null,null,null,""]
[null,null,211,null,null,null,null,null,null,"",null,null,null,null,null,null,null,null,""]
[null,null,212,null,null,null,null,null,null,"",null,null,null,null,null,null,null,null,""]
[null,null,213,null,null,null,null,null,null,"",null,null,null,null,null,null,null,null,""]
[null,null,214,null,null,null,null,null,null,"",null,null,null,null,null,null,null,null,""]
[null,null,215,null,null,null,null,null,null,"",null,null,null,null,null,null,null,null,""]
[null,null,216,null,null,null,null,null,null,"",null,null,null,null,null,null,null,null,""]
[null,null,217,null,null,null,null,null,null,"",null,null,null,null,null,null,null,null,""]
[null,null,218,null,null,null,null,null,null,"",null,null,null,null,null,null,null,null,""]
[null,null,219,null,null,null,null,null,null,"",null,null,null,null,null,null,null,null,""]
[null,null,220,null,null,null,null,null,null,"",null,null,null,null,null,null,null,null,""]
[null,null,221,null,null,null,null,null,null,"",null,null,null,null,null,null,null,null,""]
[null,null,222,null,null,null,null,null,null,"",null,null,null,null,null,null,null,null,""]
[null,null,223,null,null,null,null,null,null,"",null,null,null,null,null,null,null,null,""]
[null,null,224,null,null,null,null,null,null,"",null,null,null,null,null,null,null,null,""]
[null,null,225,null,null,null,null,null,null,"",null,null,null,null,null,null,null,null,""]
[null,null,226,null,null,null,null,null,null,"",null,null,null,null,null,null,null,null,""]
[null,null,227,null,null,null,null,null,null,"",null,null,null,null,null,null,null,null,""]
[null,null,228,null,null,null,null,null,null,"",null,null,null,null,null,null,null,null,""]
[null,null,229,null,null,null,null,null,null,"",null,null,null,null,null,null,null,null,""]
[null,null,230,null,null,null,null,null,null,"",null,null,null,null,null,null,null,null,""]
[null,null,231,null,null,null,null,null,null,"",null,null,null,null,null,null,null,null,""]
[null,null,232,null,null,null,null,null,null,"",null,null,null,null,null,null,null,null,""]
[null,null,233,null,null,null,null,null,null,"",null,null,null,null,null,null,null,null,""]
[null,null,234,null,null,null,null,null,null,"",null,null,null,null,null,null,null,null,""]
[null,null,235,null,null,null,null,null,null,"",null,null,null,null,null,null,null,null,""]
[null,null,236,null,null,null,null,null,null,"",null,null,null,null,null,null,null,null,""]
[null,null,237,null,null,null,null,null,null,"",null,null,null,null,null,null,null,null,""]
[null,null,238,null,null,null,null,null,null,"",null,null,null,null,null,null,null,null,""]
[null,null,239,null,null,null,null,null,null,"",null,null,null,null,null,null,null,null,""]
[null,null,240,null,null,null,null,null,null,"",null,null,null,null,null,null,null,null,""]
[null,null,241,null,null,null,null,null,null,"",null,null,null,null,null,null,null,null,""]
[null,null,242,null,null,null,null,null,null,"",null,null,null,null,null,null,null,null,""]
[null,null,243,null,null,null,null,null,null,"",null,null,null,null,null,null,null,null,""]
[null,null,244,null,null,null,null,null,null,"",null,null,null,null,null,null,null,null,""]
[null,null,245,null,null,null,null,null,null,"",null,null,null,null,null,null,null,null,""]
[null,null,246,null,null,null,null,null,null,"",null,null,null,null,null,null,null,null,""]
[null,null,247,null,null,null,null,null,null,"",null,null,null,null,null,null,null,null,""]
[null,null,248,null,null,null,null,null,null,"",null,null,null,null,null,null,null,null,""]
[null,null,249,null,null,null,null,null,null,"",null,null,null,null,null,null,null,null,""]
[null,null,250,null,null,null,null,null,null,"",null,null,null,null,null,null,null,null,""]
[null,null,251,null,null,null,null,null,null,"",null,null,null,null,null,null,null,null,""]
[null,null,252,null,null,null,null,null,null,"",null,null,null,null,null,null,null,null,""]
[null,null,253,null,null,null,null,null,null,"",null,null,null,null,null,null,null,null,""]
[null,null,254,null,null,null,null,null,null,"",null,null,null,null,null,null,null,null,""]
[null,null,255,null,null,null,null,null,null,"",null,null,null,null,null,null,null,null,""]
[null,null,256,null,null,null,null,null,null,"",null,null,null,null,null,null,null,null,""]
[null,null,257,null,null,null,null,null,null,{"$f":"IF(ISBLANK(E270),\"\",IF(S270<>\"\",S270,IF(ISERROR(INT(LEFT(E270,3))),\"Repair Parts\",IF(OR(INT(LEFT(E270,3))=155,INT(LEFT(E270,3))>159),\"Repair Parts\",IF(INT(LEFT(E270,3))=150,\"Tires\",\"UNKNOWN\")))))","v":""},null,null,null,null,null,null,null,null,{"$f":"IF(ISERROR(INT(LEFT(E270,3))),\"\",IF(INT(LEFT(E270,3))=159,IF(AND(INT(LEFT(E270,3))=159,INT(E270)<>159000098,INT(E270)<>159000099,OR(AND(INT(E270)>=159000000,INT(E270)<=159000051),INT(E270)>159000062)),\"Oil\",IF(INT(E270)=159000054,\"Diesel\",IF(INT(E270)=159000055,\"Gasoline\",IF(INT(LEFT(E270,3))=159,\"Other Fuels / DEF\")))),\"\"))","v":""}]
[null,null,{"$f":"ROW()-13","v":258},null,null,null,null,null,null,"",null,null,null,null,null,null,null,null,""]
[null,null,259,null,null,null,null,null,null,"",null,null,null,null,null,null,null,null,""]
[null,null,260,null,null,null,null,null,null,"",null,null,null,null,null,null,null,null,""]
[null,null,261,null,null,null,null,null,null,"",null,null,null,null,null,null,null,null,""]
[null,null,262,null,null,null,null,null,null,"",null,null,null,null,null,null,null,null,""]
[null,null,263,null,null,null,null,null,null,"",null,null,null,null,null,null,null,null,""]
[null,null,264,null,null,null,null,null,null,"",null,null,null,null,null,null,null,null,""]
[null,null,265,null,null,null,null,null,null,"",null,null,null,null,null,null,null,null,""]
[null,null,266,null,null,null,null,null,null,"",null,null,null,null,null,null,null,null,""]
[null,null,267,null,null,null,null,null,null,"",null,null,null,null,null,null,null,null,""]
[null,null,268,null,null,null,null,null,null,"",null,null,null,null,null,null,null,null,""]
[null,null,269,null,null,null,null,null,null,"",null,null,null,null,null,null,null,null,""]
[null,null,270,null,null,null,null,null,null,"",null,null,null,null,null,null,null,null,""]
[null,null,271,null,null,null,null,null,null,"",null,null,null,null,null,null,null,null,""]
[null,null,272,null,null,null,null,null,null,"",null,null,null,null,null,null,null,null,""]
[null,null,273,null,null,null,null,null,null,"",null,null,null,null,null,null,null,null,""]
[null,null,274,null,null,null,null,null,null,"",null,null,null,null,null,null,null,null,""]
[null,null,275,null,null,null,null,null,null,"",null,null,null,null,null,null,null,null,""]
[null,null,276,null,null,null,null,null,null,"",null,null,null,null,null,null,null,null,""]
[null,null,277,null,null,null,null,null,null,"",null,null,null,null,null,null,null,null,""]
[null,null,278,null,null,null,null,null,null,"",null,null,null,null,null,null,null,null,""]
[null,null,279,null,null,null,null,null,null,"",null,null,null,null,null,null,null,null,""]
[null,null,280,null,null,null,null,null,null,"",null,null,null,null,null,null,null,null,""]
[null,null,281,null,null,null,null,null,null,"",null,null,null,null,null,null,null,null,""]
[null,null,282,null,null,null,null,null,null,"",null,null,null,null,null,null,null,null,""]
[null,null,283,null,null,null,null,null,null,"",null,null,null,null,null,null,null,null,""]
[null,null,284,null,null,null,null,null,null,"",null,null,null,null,null,null,null,null,""]
[null,null,285,null,null,null,null,null,null,"",null,null,null,null,null,null,null,null,""]
[null,null,286,null,null,null,null,null,null,"",null,null,null,null,null,null,null,null,""]
[null,null,287,null,null,null,null,null,null,"",null,null,null,null,null,null,null,null,""]
[null,null,288,null,null,null,null,null,null,"",null,null,null,null,null,null,null,null,""]
[null,null,289,null,null,null,null,null,null,"",null,null,null,null,null,null,null,null,""]
[null,null,290,null,null,null,null,null,null,"",null,null,null,null,null,null,null,null,""]
[null,null,291,null,null,null,null,null,null,"",null,null,null,null,null,null,null,null,""]
[null,null,292,null,null,null,null,null,null,"",null,null,null,null,null,null,null,null,""]
[null,null,293,null,null,null,null,null,null,"",null,null,null,null,null,null,null,null,""]
[null,null,294,null,null,null,null,null,null,"",null,null,null,null,null,null,null,null,""]
[null,null,295,null,null,null,null,null,null,"",null,null,null,null,null,null,null,null,""]
[null,null,296,null,null,null,null,null,null,"",null,null,null,null,null,null,null,null,""]
[null,null,297,null,null,null,null,null,null,"",null,null,null,null,null,null,null,null,""]
[null,null,298,null,null,null,null,null,null,"",null,null,null,null,null,null,null,null,""]
[null,null,299,null,null,null,null,null,null,"",null,null,null,null,null,null,null,null,""]
[null,null,300,null,null,null,null,null,null,"",null,null,null,null,null,null,null,null,""]
[null,null,301,null,null,null,null,null,null,"",null,null,null,null,null,null,null,null,""]
[null,null,302,null,null,null,null,null,null,"",null,null,null,null,null,null,null,null,""]
[null,null,303,null,null,null,null,null,null,"",null,null,null,null,null,null,null,null,""]
[null,null,304,null,null,null,null,null,null,"",null,null,null,null,null,null,null,null,""]
[null,null,305,null,null,null,null,null,null,"",null,null,null,null,null,null,null,null,""]
[null,null,306,null,null,null,null,null,null,"",null,null,null,null,null,null,null,null,""]
[null,null,307,null,null,null,null,null,null,"",null,null,null,null,null,null,null,null,""]
[null,null,308,null,null,null,null,null,null,"",null,null,null,null,null,null,null,null,""]
[null,null,309,null,null,null,null,null,null,"",null,null,null,null,null,null,null,null,""]
[null,null,310,null,null,null,null,null,null,"",null,null,null,null,null,null,null,null,""]
[null,null,311,null,null,null,null,null,null,"",null,null,null,null,null,null,null,null,""]
[null,null,312,null,null,null,null,null,null,"",null,null,null,null,null,null,null,null,""]
[null,null,313,null,null,null,null,null,null,"",null,null,null,null,null,null,null,null,""]
[null,null,314,null,null,null,null,null,null,"",null,null,null,null,null,null,null,null,""]
[null,null,315,null,null,null,null,null,null,"",null,null,null,null,null,null,null,null,""]
[null,null,316,null,null,null,null,null,null,"",null,null,null,null,null,null,null,null,""]
[null,null,317,null,null,null,null,null,null,"",null,null,null,null,null,null,null,null,""]
[null,null,318,null,null,null,null,null,null,"",null,null,null,null,null,null,null,null,""]
[null,null,319,null,null,null,null,null,null,"",null,null,null,null,null,null,null,null,""]
[null,null,320,null,null,null,null,null,null,"",null,null,null,null,null,null,null,null,""]
[null,null,321,null,null,null,null,null,null,{"$f":"IF(ISBLANK(E334),\"\",IF(S334<>\"\",S334,IF(ISERROR(INT(LEFT(E334,3))),\"Repair Parts\",IF(OR(INT(LEFT(E334,3))=155,INT(LEFT(E334,3))>159),\"Repair Parts\",IF(INT(LEFT(E334,3))=150,\"Tires\",\"UNKNOWN\")))))","v":""},null,null,null,null,null,null,null,null,{"$f":"IF(ISERROR(INT(LEFT(E334,3))),\"\",IF(INT(LEFT(E334,3))=159,IF(AND(INT(LEFT(E334,3))=159,INT(E334)<>159000098,INT(E334)<>159000099,OR(AND(INT(E334)>=159000000,INT(E334)<=159000051),INT(E334)>159000062)),\"Oil\",IF(INT(E334)=159000054,\"Diesel\",IF(INT(E334)=159000055,\"Gasoline\",IF(INT(LEFT(E334,3))=159,\"Other Fuels / DEF\")))),\"\"))","v":""}]
[null,null,{"$f":"ROW()-13","v":322},null,null,null,null,null,null,"",null,null,null,null,null,null,null,null,""]
[null,null,323,null,null,null,null,null,null,"",null,null,null,null,null,null,null,null,""]
[null,null,324,null,null,null,null,null,null,"",null,null,null,null,null,null,null,null,""]
[null,null,325,null,null,null,null,null,null,"",null,null,null,null,null,null,null,null,""]
[null,null,326,null,null,null,null,null,null,"",null,null,null,null,null,null,null,null,""]
[null,null,327,null,null,null,null,null,null,"",null,null,null,null,null,null,null,null,""]
[null,null,328,null,null,null,null,null,null,"",null,null,null,null,null,null,null,null,""]
[null,null,329,null,null,null,null,null,null,"",null,null,null,null,null,null,null,null,""]
[null,null,330,null,null,null,null,null,null,"",null,null,null,null,null,null,null,null,""]
[null,null,331,null,null,null,null,null,null,"",null,null,null,null,null,null,null,null,""]
[null,null,332,null,null,null,null,null,null,"",null,null,null,null,null,null,null,null,""]
[null,null,333,null,null,null,null,null,null,"",null,null,null,null,null,null,null,null,""]
[null,null,334,null,null,null,null,null,null,"",null,null,null,null,null,null,null,null,""]
[null,null,335,null,null,null,null,null,null,"",null,null,null,null,null,null,null,null,""]
[null,null,336,null,null,null,null,null,null,"",null,null,null,null,null,null,null,null,""]
[null,null,337,null,null,null,null,null,null,"",null,null,null,null,null,null,null,null,""]
[null,null,338,null,null,null,null,null,null,"",null,null,null,null,null,null,null,null,""]
[null,null,339,null,null,null,null,null,null,"",null,null,null,null,null,null,null,null,""]
[null,null,340,null,null,null,null,null,null,"",null,null,null,null,null,null,null,null,""]
[null,null,341,null,null,null,null,null,null,"",null,null,null,null,null,null,null,null,""]
[null,null,342,null,null,null,null,null,null,"",null,null,null,null,null,null,null,null,""]
[null,null,343,null,null,null,null,null,null,"",null,null,null,null,null,null,null,null,""]
[null,null,344,null,null,null,null,null,null,"",null,null,null,null,null,null,null,null,""]
[null,null,345,null,null,null,null,null,null,"",null,null,null,null,null,null,null,null,""]
[null,null,346,null,null,null,null,null,null,"",null,null,null,null,null,null,null,null,""]
[null,null,347,null,null,null,null,null,null,"",null,null,null,null,null,null,null,null,""]
[null,null,348,null,null,null,null,null,null,"",null,null,null,null,null,null,null,null,""]
[null,null,349,null,null,null,null,null,null,"",null,null,null,null,null,null,null,null,""]
[null,null,350,null,null,null,null,null,null,"",null,null,null,null,null,null,null,null,""]
[null,null,351,null,null,null,null,null,null,"",null,null,null,null,null,null,null,null,""]
[null,null,352,null,null,null,null,null,null,"",null,null,null,null,null,null,null,null,""]
[null,null,353,null,null,null,null,null,null,"",null,null,null,null,null,null,null,null,""]
[null,null,354,null,null,null,null,null,null,"",null,null,null,null,null,null,null,null,""]
[null,null,355,null,null,null,null,null,null,"",null,null,null,null,null,null,null,null,""]
[null,null,356,null,null,null,null,null,null,"",null,null,null,null,null,null,null,null,""]
[null,null,357,null,null,null,null,null,null,"",null,null,null,null,null,null,null,null,""]
[null,null,358,null,null,null,null,null,null,"",null,null,null,null,null,null,null,null,""]
[null,null,359,null,null,null,null,null,null,"",null,null,null,null,null,null,null,null,""]
[null,null,360,null,null,null,null,null,null,"",null,null,null,null,null,null,null,null,""]
[null,null,361,null,null,null,null,null,null,"",null,null,null,null,null,null,null,null,""]
[null,null,362,null,null,null,null,null,null,"",null,null,null,null,null,null,null,null,""]
[null,null,363,null,null,null,null,null,null,"",null,null,null,null,null,null,null,null,""]
[null,null,364,null,null,null,null,null,null,"",null,null,null,null,null,null,null,null,""]
[null,null,365,null,null,null,null,null,null,"",null,null,null,null,null,null,null,null,""]
[null,null,366,null,null,null,null,null,null,"",null,null,null,null,null,null,null,null,""]
[null,null,367,null,null,null,null,null,null,"",null,null,null,null,null,null,null,null,""]
[null,null,368,null,null,null,null,null,null,"",null,null,null,null,null,null,null,null,""]
[null,null,369,null,null,null,null,null,null,"",null,null,null,null,null,null,null,null,""]
[null,null,370,null,null,null,null,null,null,"",null,null,null,null,null,null,null,null,""]
[null,null,371,null,null,null,null,null,null,"",null,null,null,null,null,null,null,null,""]
[null,null,372,null,null,null,null,null,null,"",null,null,null,null,null,null,null,null,""]
[null,null,373,null,null,null,null,null,null,"",null,null,null,null,null,null,null,null,""]
[null,null,374,null,null,null,null,null,null,"",null,null,null,null,null,null,null,null,""]
[null,null,375,null,null,null,null,null,null,"",null,null,null,null,null,null,null,null,""]
[null,null,376,null,null,null,null,null,null,"",null,null,null,null,null,null,null,null,""]
[null,null,377,null,null,null,null,null,null,"",null,null,null,null,null,null,null,null,""]
[null,null,378,null,null,null,null,null,null,"",null,null,null,null,null,null,null,null,""]
[null,null,379,null,null,null,null,null,null,"",null,null,null,null,null,null,null,null,""]
[null,null,380,null,null,null,null,null,null,"",null,null,null,null,null,null,null,null,""]
[null,null,381,null,null,null,null,null,null,"",null,null,null,null,null,null,null,null,""]
[null,null,382,null,null,null,null,null,null,"",null,null,null,null,null,null,null,null,""]
[null,null,383,null,null,null,null,null,null,"",null,null,null,null,null,null,null,null,""]
[null,null,384,null,null,null,null,null,null,"",null,null,null,null,null,null,null,null,""]
[null,null,385,null,null,null,null,null,null,{"$f":"IF(ISBLANK(E398),\"\",IF(S398<>\"\",S398,IF(ISERROR(INT(LEFT(E398,3))),\"Repair Parts\",IF(OR(INT(LEFT(E398,3))=155,INT(LEFT(E398,3))>159),\"Repair Parts\",IF(INT(LEFT(E398,3))=150,\"Tires\",\"UNKNOWN\")))))","v":""},null,null,null,null,null,null,null,null,{"$f":"IF(ISERROR(INT(LEFT(E398,3))),\"\",IF(INT(LEFT(E398,3))=159,IF(AND(INT(LEFT(E398,3))=159,INT(E398)<>159000098,INT(E398)<>159000099,OR(AND(INT(E398)>=159000000,INT(E398)<=159000051),INT(E398)>159000062)),\"Oil\",IF(INT(E398)=159000054,\"Diesel\",IF(INT(E398)=159000055,\"Gasoline\",IF(INT(LEFT(E398,3))=159,\"Other Fuels / DEF\")))),\"\"))","v":""}]
[null,null,{"$f":"ROW()-13","v":386},null,null,null,null,null,null,"",null,null,null,null,null,null,null,null,""]
[null,null,387,null,null,null,null,null,null,"",null,null,null,null,null,null,null,null,""]
[null,null,388,null,null,null,null,null,null,"",null,null,null,null,null,null,null,null,""]
[null,null,389,null,null,null,null,null,null,"",null,null,null,null,null,null,null,null,""]
[null,null,390,null,null,null,null,null,null,"",null,null,null,null,null,null,null,null,""]
[null,null,391,null,null,null,null,null,null,"",null,null,null,null,null,null,null,null,""]
[null,null,392,null,null,null,null,null,null,"",null,null,null,null,null,null,null,null,""]
[null,null,393,null,null,null,null,null,null,"",null,null,null,null,null,null,null,null,""]
[null,null,394,null,null,null,null,null,null,"",null,null,null,null,null,null,null,null,""]
[null,null,395,null,null,null,null,null,null,"",null,null,null,null,null,null,null,null,""]
[null,null,396,null,null,null,null,null,null,"",null,null,null,null,null,null,null,null,""]
[null,null,397,null,null,null,null,null,null,"",null,null,null,null,null,null,null,null,""]
[null,null,398,null,null,null,null,null,null,"",null,null,null,null,null,null,null,null,""]
[null,null,399,null,null,null,null,null,null,"",null,null,null,null,null,null,null,null,""]
[null,null,400,null,null,null,null,null,null,"",null,null,null,null,null,null,null,null,""]
[null,null,401,null,null,null,null,null,null,"",null,null,null,null,null,null,null,null,""]
[null,null,402,null,null,null,null,null,null,"",null,null,null,null,null,null,null,null,""]
[null,null,403,null,null,null,null,null,null,"",null,null,null,null,null,null,null,null,""]
[null,null,404,null,null,null,null,null,null,"",null,null,null,null,null,null,null,null,""]
[null,null,405,null,null,null,null,null,null,"",null,null,null,null,null,null,null,null,""]
[null,null,406,null,null,null,null,null,null,"",null,null,null,null,null,null,null,null,""]
[null,null,407,null,null,null,null,null,null,"",null,null,null,null,null,null,null,null,""]
[null,null,408,null,null,null,null,null,null,"",null,null,null,null,null,null,null,null,""]
[null,null,409,null,null,null,null,null,null,"",null,null,null,null,null,null,null,null,""]
[null,null,410,null,null,null,null,null,null,"",null,null,null,null,null,null,null,null,""]
[null,null,411,null,null,null,null,null,null,"",null,null,null,null,null,null,null,null,""]
[null,null,412,null,null,null,null,null,null,"",null,null,null,null,null,null,null,null,""]
[null,null,413,null,null,null,null,null,null,"",null,null,null,null,null,null,null,null,""]
[null,null,414,null,null,null,null,null,null,"",null,null,null,null,null,null,null,null,""]
[null,null,415,null,null,null,null,null,null,"",null,null,null,null,null,null,null,null,""]
[null,null,416,null,null,null,null,null,null,"",null,null,null,null,null,null,null,null,""]
[null,null,417,null,null,null,null,null,null,"",null,null,null,null,null,null,null,null,""]
[null,null,418,null,null,null,null,null,null,"",null,null,null,null,null,null,null,null,""]
[null,null,419,null,null,null,null,null,null,"",null,null,null,null,null,null,null,null,""]
[null,null,420,null,null,null,null,null,null,"",null,null,null,null,null,null,null,null,""]
[null,null,421,null,null,null,null,null,null,"",null,null,null,null,null,null,null,null,""]
[null,null,422,null,null,null,null,null,null,"",null,null,null,null,null,null,null,null,""]
[null,null,423,null,null,null,null,null,null,"",null,null,null,null,null,null,null,null,""]
[null,null,424,null,null,null,null,null,null,"",null,null,null,null,null,null,null,null,""]
[null,null,425,null,null,null,null,null,null,"",null,null,null,null,null,null,null,null,""]
[null,null,426,null,null,null,null,null,null,"",null,null,null,null,null,null,null,null,""]
[null,null,427,null,null,null,null,null,null,"",null,null,null,null,null,null,null,null,""]
[null,null,428,null,null,null,null,null,null,"",null,null,null,null,null,null,null,null,""]
[null,null,429,null,null,null,null,null,null,"",null,null,null,null,null,null,null,null,""]
[null,null,430,null,null,null,null,null,null,"",null,null,null,null,null,null,null,null,""]
[null,null,431,null,null,null,null,null,null,"",null,null,null,null,null,null,null,null,""]
[null,null,432,null,null,null,null,null,null,"",null,null,null,null,null,null,null,null,""]
[null,null,433,null,null,null,null,null,null,"",null,null,null,null,null,null,null,null,""]
[null,null,434,null,null,null,null,null,null,"",null,null,null,null,null,null,null,null,""]
[null,null,435,null,null,null,null,null,null,"",null,null,null,null,null,null,null,null,""]
[null,null,436,null,null,null,null,null,null,"",null,null,null,null,null,null,null,null,""]
[null,null,437,null,null,null,null,null,null,"",null,null,null,null,null,null,null,null,""]
[null,null,438,null,null,null,null,null,null,"",null,null,null,null,null,null,null,null,""]
[null,null,439,null,null,null,null,null,null,"",null,null,null,null,null,null,null,null,""]
[null,null,440,null,null,null,null,null,null,"",null,null,null,null,null,null,null,null,""]
[null,null,441,null,null,null,null,null,null,"",null,null,null,null,null,null,null,null,""]
[null,null,442,null,null,null,null,null,null,"",null,null,null,null,null,null,null,null,""]
[null,null,443,null,null,null,null,null,null,"",null,null,null,null,null,null,null,null,""]
[null,null,444,null,null,null,null,null,null,"",null,null,null,null,null,null,null,null,""]
[null,null,445,null,null,null,null,null,null,"",null,null,null,null,null,null,null,null,""]
[null,null,446,null,null,null,null,null,null,"",null,null,null,null,null,null,null,null,""]
[null,null,447,null,null,null,null,null,null,"",null,null,null,null,null,null,null,null,""]
[null,null,448,null,null,null,null,null,null,"",null,null,null,null,null,null,null,null,""]
[null,null,449,null,null,null,null,null,null,{"$f":"IF(ISBLANK(E462),\"\",IF(S462<>\"\",S462,IF(ISERROR(INT(LEFT(E462,3))),\"Repair Parts\",IF(OR(INT(LEFT(E462,3))=155,INT(LEFT(E462,3))>159),\"Repair Parts\",IF(INT(LEFT(E462,3))=150,\"Tires\",\"UNKNOWN\")))))","v":""},null,null,null,null,null,null,null,null,""]
[null,null,{"$f":"ROW()-13","v":450},null,null,null,null,null,null,"",null,null,null,null,null,null,null,null,{"$f":"IF(ISERROR(INT(LEFT(E463,3))),\"\",IF(INT(LEFT(E463,3))=159,IF(AND(INT(LEFT(E463,3))=159,INT(E463)<>159000098,INT(E463)<>159000099,OR(AND(INT(E463)>=159000000,INT(E463)<=159000051),INT(E463)>159000062)),\"Oil\",IF(INT(E463)=159000054,\"Diesel\",IF(INT(E463)=159000055,\"Gasoline\",IF(INT(LEFT(E463,3))=159,\"Other Fuels / DEF\")))),\"\"))","v":""}]
[null,null,451,null,null,null,null,null,null,"",null,null,null,null,null,null,null,null,""]
[null,null,452,null,null,null,null,null,null,"",null,null,null,null,null,null,null,null,""]
[null,null,453,null,null,null,null,null,null,"",null,null,null,null,null,null,null,null,""]
[null,null,454,null,null,null,null,null,null,"",null,null,null,null,null,null,null,null,""]
[null,null,455,null,null,null,null,null,null,"",null,null,null,null,null,null,null,null,""]
[null,null,456,null,null,null,null,null,null,"",null,null,null,null,null,null,null,null,""]
[null,null,457,null,null,null,null,null,null,"",null,null,null,null,null,null,null,null,""]
[null,null,458,null,null,null,null,null,null,"",null,null,null,null,null,null,null,null,""]
[null,null,459,null,null,null,null,null,null,"",null,null,null,null,null,null,null,null,""]
[null,null,460,null,null,null,null,null,null,"",null,null,null,null,null,null,null,null,""]
[null,null,461,null,null,null,null,null,null,"",null,null,null,null,null,null,null,null,""]
[null,null,462,null,null,null,null,null,null,"",null,null,null,null,null,null,null,null,""]
[null,null,463,null,null,null,null,null,null,"",null,null,null,null,null,null,null,null,""]
[null,null,464,null,null,null,null,null,null,"",null,null,null,null,null,null,null,null,""]
[null,null,465,null,null,null,null,null,null,"",null,null,null,null,null,null,null,null,""]
[null,null,466,null,null,null,null,null,null,"",null,null,null,null,null,null,null,null,""]
[null,null,467,null,null,null,null,null,null,"",null,null,null,null,null,null,null,null,""]
[null,null,468,null,null,null,null,null,null,"",null,null,null,null,null,null,null,null,""]
[null,null,469,null,null,null,null,null,null,"",null,null,null,null,null,null,null,null,""]
[null,null,470,null,null,null,null,null,null,"",null,null,null,null,null,null,null,null,""]
[null,null,471,null,null,null,null,null,null,"",null,null,null,null,null,null,null,null,""]
[null,null,472,null,null,null,null,null,null,"",null,null,null,null,null,null,null,null,""]
[null,null,473,null,null,null,null,null,null,"",null,null,null,null,null,null,null,null,""]
[null,null,474,null,null,null,null,null,null,"",null,null,null,null,null,null,null,null,""]
[null,null,475,null,null,null,null,null,null,"",null,null,null,null,null,null,null,null,""]
[null,null,476,null,null,null,null,null,null,"",null,null,null,null,null,null,null,null,""]
[null,null,477,null,null,null,null,null,null,"",null,null,null,null,null,null,null,null,""]
[null,null,478,null,null,null,null,null,null,"",null,null,null,null,null,null,null,null,""]
[null,null,479,null,null,null,null,null,null,"",null,null,null,null,null,null,null,null,""]
[null,null,480,null,null,null,null,null,null,"",null,null,null,null,null,null,null,null,""]
[null,null,481,null,null,null,null,null,null,"",null,null,null,null,null,null,null,null,""]
[null,null,482,null,null,null,null,null,null,"",null,null,null,null,null,null,null,null,""]
[null,null,483,null,null,null,null,null,null,"",null,null,null,null,null,null,null,null,""]
[null,null,484,null,null,null,null,null,null,"",null,null,null,null,null,null,null,null,""]
[null,null,485,null,null,null,null,null,null,"",null,null,null,null,null,null,null,null,""]
[null,null,486,null,null,null,null,null,null,"",null,null,null,null,null,null,null,null,""]
[null,null,487,null,null,null,null,null,null,"",null,null,null,null,null,null,null,null,""]
[null,null,488,null,null,null,null,null,null,"",null,null,null,null,null,null,null,null,""]
[null,null,489,null,null,null,null,null,null,"",null,null,null,null,null,null,null,null,""]
[null,null,490,null,null,null,null,null,null,"",null,null,null,null,null,null,null,null,""]
[null,null,491,null,null,null,null,null,null,"",null,null,null,null,null,null,null,null,""]
[null,null,492,null,null,null,null,null,null,"",null,null,null,null,null,null,null,null,""]
[null,null,493,null,null,null,null,null,null,"",null,null,null,null,null,null,null,null,""]
[null,null,494,null,null,null,null,null,null,"",null,null,null,null,null,null,null,null,""]
[null,null,495,null,null,null,null,null,null,"",null,null,null,null,null,null,null,null,""]
[null,null,496,null,null,null,null,null,null,"",null,null,null,null,null,null,null,null,""]
[null,null,497,null,null,null,null,null,null,"",null,null,null,null,null,null,null,null,""]
[null,null,498,null,null,null,null,null,null,"",null,null,null,null,null,null,null,null,""]
[null,null,499,null,null,null,null,null,null,"",null,null,null,null,null,null,null,null,""]
[null,null,500,null,null,null,null,null,null,"",null,null,null,null,null,null,null,null,""]
[null,null,null,null,null,null,null,null,null,null,null,null,null,null,null,null,null,null,""]
[null,null,null,null,{"$f":"ROUNDUP(SUM(MAX(30,COUNTIF(E14:E513,\"<>\"))/30),0)","v":1}]

{"sheet":"Buster Report","index":8,"n_rows":39,"n_cols":40,"rows_kept":39,"cut":false,"hidden":false,"merged":[[8,27,9,27],[8,11,9,11],[8,13,9,13],[8,15,9,15],[8,17,9,17],[8,23,9,23],[8,25,9,25],[8,19,9,19],[8,21,9,21],[8,7,9,7],[8,6,9,6],[2,2,3,4],[8,9,9,9],[6,3,6,7],[8,5,9,5],[13,9,13,27],[14,13,15,13],[14,15,15,15],[14,17,15,17],[14,19,15,19],[14,21,15,21],[14,23,15,23],[14,27,15,27],[22,1,22,2],[23,1,23,2],[20,1,20,2],[14,25,15,25],[18,1,18,2],[19,1,19,2],[14,6,15,6],[14,7,15,7],[14,9,15,9],[14,11,15,11],[21,1,21,2],[14,4,15,4],[14,3,15,3],[14,1,15,2],[17,1,17,2],[14,5,15,5],[33,1,33,2],[34,1,34,2],[35,1,35,2],[36,1,36,2],[24,1,24,2],[25,1,25,2],[26,1,26,2],[27,1,27,2],[28,1,28,2],[29,1,29,2],[30,1,30,2],[31,1,31,2],[32,1,32,2]]}
[]
[]
[null,null,"Buster Report"]
[null,null,null,null,null,null,null,null,null,null,null,null,null,null,null,null,null,null,null,null,null,null,null,null,null,null,null,null,null,"(Save, Email, and Print All options available on Accountability worksheet tab)"]
[null,null,null,"LEA #",{"$f":"'Bus Data'!I4","v":"  010"},null,null,null,null,null,null,null,null,null,null,null,null,null,null,null,null,null,null,null,null,null,null,null,null,null,null,true]
[]
[null,null,null,"Check if LEA does not own/share a Buster Robotic Bus"]
[]
[null,null,null,"Summary",null,"Time","Local","Individuals \nPresent",null,"Pre \nK",null,"K",null,1,null,2,null,3,null,4,null,5,null,6,null,"7-12",null,"Public \nDemo"]
[]
[null,null,null,null,"Totals:",{"$f":"SUM(F18:F37)","v":0},{"$f":"COUNTIF(G18:G37,\"<>\"&\"\")","v":0},{"$f":"SUM(H18:H37)","v":0},null,{"$f":"COUNTIF(AE18:AE37,\"True\")","v":0},null,{"$f":"COUNTIF(AF18:AF37,\"True\")","v":0},null,{"$f":"COUNTIF(AG18:AG37,\"True\")","v":0},null,{"$f":"COUNTIF(AH18:AH37,\"True\")","v":0},null,{"$f":"COUNTIF(AI18:AI37,\"True\")","v":0},null,{"$f":"COUNTIF(AJ18:AJ37,\"True\")","v":0},null,{"$f":"COUNTIF(AK18:AK37,\"True\")","v":0},null,{"$f":"COUNTIF(AL18:AL37,\"True\")","v":0},null,{"$f":"COUNTIF(AM18:AM37,\"True\")","v":0},null,{"$f":"COUNTIF(AN18:AN37,\"True\")","v":0}]
[]
[]
[null,null,null,null,null,null,null,null,null,"(Check all that apply)"]
[null,null,null,"LEA","Date","Time\n(Hours)","Local","Individuals \nPresent",null,"Pre \nK",null,"K",null,1,null,2,null,3,null,4,null,5,null,6,null,"7-12",null,"Public \nDemo"]
[null,null,null,null,null,null,null,null,null,null,null,null,null,null,null,null,null,null,null,null,null,null,null,null,null,null,null,null,null,null,"Pre -K","K",1,2,3,4,5,6,7,"Public"]
[]
[null,1,null,{"$f":"IF(E18<>\"\",$E$5,\"\")","v":""}]
[null,2,null,{"$f":"IF(E19<>\"\",$E$5,\"\")","v":""}]
[null,3]
[null,4]
[null,5]
[null,6]
[null,7]
[null,8]
[null,9]
[null,10]
[null,11]
[null,12]
[null,13]
[null,14]
[null,15]
[null,16]
[null,17]
[null,18]
[null,19]
[null,20]
[]
[null,null,null,null,{"$f":"ROUNDUP(SUM(MAX(16,COUNTIF(E18:E37,\"<>\"))/16),0)","v":1}]

{"sheet":"Official Summary","index":9,"n_rows":78,"n_cols":31,"rows_kept":78,"cut":false,"hidden":false,"merged":[[53,3,64,3],[62,4,64,4],[49,3,49,5],[50,3,50,5],[3,3,3,6],[4,3,4,5],[5,3,5,5],[7,3,7,5],[13,3,13,5],[18,3,18,5],[18,11,18,12],[9,11,10,11],[17,11,17,12],[4,30,5,30],[4,20,5,20],[3,21,3,23],[4,21,4,23],[3,25,3,26],[4,25,5,26],[3,27,3,28],[4,27,5,28],[4,24,5,24]]}
[]
[]
[null,null,"Bus Data Tab",null,null,null,null,null,null,null,"Policy Tab",null,null,null,null,null,null,null,"Inventory Tab"]
[null,null,null,"LEA",null,null,null,null,null,null,null,"A.",null,{"$f":"IF('Policy Questionnaire'!N7,\"X\",\"\")","v":""},"Supt./Asst. Supt.",null,null,null,null,null,424,425,null,null,422,423,null,423,null,423]
[null,null,null,"Name",null,null,{"$f":"'Bus Data'!G4","v":"ALAMANCE"},null,null,null,null,null,null,{"$f":"IF('Policy Questionnaire'!N9,\"X\",\"\")","v":""},"Transportation director",null,null,null,null,null,"Oil","Tires",null,null,"Parts \n(Repair)","Diesel",null,"Unleaded",null,"Other","Total"]
[null,null,null,"Code",null,null,{"$f":"'Bus Data'!I4","v":"  010"},null,null,null,null,null,null,{"$f":"IF('Policy Questionnaire'!N11,\"X\",\"\")","v":""},"Principals",null,null,null,null,null,null,"New","Recap","All",null,null,null,null,null,"Fuels & DEF"]
[null,null,null,null,null,null,null,null,null,null,null,null,null,{"$f":"IF('Policy Questionnaire'!N13,\"X\",\"\")","v":""},"TIMS Coordinator",null,null,null,null,null,"Currency","Quantity","Quantity","Currency","Currency","Quantity","Currency","Quantity","Currency","Currency","Currency"]
[null,null,"Bus Data","A.",null,null,{"$f":"'Bus Data'!$I$7","v":0},null,null,null,null,null,null,{"$f":"IF('Policy Questionnaire'!N15,\"X\",\"\")","v":""},"Trans. supervisor",null,null,null,null,"A.",{"$f":"Inventory!I8","v":0},{"$f":"Inventory!L8","v":0},{"$f":"Inventory!N8","v":0},{"$f":"Inventory!P8","v":0},{"$f":"Inventory!S8","v":0},{"$f":"Inventory!V8","v":0},{"$f":"Inventory!X8","v":0},{"$f":"Inventory!AA8","v":0},{"$f":"Inventory!AC8","v":0},{"$f":"Inventory!AF8","v":0},{"$f":"Inventory!AI8","v":0}]
[null,null,null,"B.",1,null,{"$f":"'Bus Data'!I10","v":0},null,null,null,null,null,null,{"$f":"IF('Policy Questionnaire'!N17,\"X\",\"\")","v":""},{"$f":"IF('Policy Questionnaire'!F17<>\"\",'Policy Questionnaire'!F17,\"Other Ln A\")","v":"Other Ln A"},null,null,null,null,"B.",{"$f":"Inventory!I9","v":0},{"$f":"Inventory!L9","v":0},{"$f":"Inventory!N9","v":0},{"$f":"Inventory!P9","v":0},{"$f":"Inventory!S9","v":0},{"$f":"Inventory!V9","v":0},{"$f":"Inventory!X9","v":0},{"$f":"Inventory!AA9","v":0},{"$f":"Inventory!AC9","v":0},{"$f":"Inventory!AF9","v":0},{"$f":"Inventory!AI9","v":0}]
[null,null,null,null,2,null,{"$f":"'Bus Data'!I11","v":0},null,null,null,null,"B.","a.",{"$f":"IF('Policy Questionnaire'!N21,\"Yes\",\"No\")","v":"No"},"Yes/No",null,null,null,null,"C.",{"$f":"Inventory!I10","v":0},{"$f":"Inventory!L10","v":0},{"$f":"Inventory!N10","v":0},{"$f":"Inventory!P10","v":0},{"$f":"Inventory!S10","v":0},{"$f":"Inventory!V10","v":0},{"$f":"Inventory!X10","v":0},{"$f":"Inventory!AA10","v":0},{"$f":"Inventory!AC10","v":0},{"$f":"Inventory!AF10","v":0},{"$f":"Inventory!AI10","v":0}]
[null,null,null,"C.",1,null,{"$f":"'Bus Data'!I14","v":0},null,null,null,null,null,"b.",{"$f":"IF('Policy Questionnaire'!N25,\"Yes\",\"No\")","v":"No"},"Yes/No",null,null,null,null,"D.",{"$f":"Inventory!I11","v":0},{"$f":"Inventory!L11","v":0},{"$f":"Inventory!N11","v":0},{"$f":"Inventory!P11","v":0},{"$f":"Inventory!S11","v":0},{"$f":"Inventory!V11","v":0},{"$f":"Inventory!X11","v":0},{"$f":"Inventory!AA11","v":0},{"$f":"Inventory!AC11","v":0},{"$f":"Inventory!AF11","v":0},{"$f":"Inventory!AI11","v":0}]
[null,null,null,null,2,null,{"$f":"'Bus Data'!I15","v":0},null,null,null,null,"C.",null,{"$f":"IF('Policy Questionnaire'!N33,\"X\",\"\")","v":""},"Supt./Asst. Supt.",null,null,null,null,"E.",{"$f":"Inventory!I12","v":0},{"$f":"Inventory!L12","v":0},{"$f":"Inventory!N12","v":0},{"$f":"Inventory!P12","v":0},{"$f":"Inventory!S12","v":0},{"$f":"Inventory!V12","v":0},{"$f":"Inventory!X12","v":0},{"$f":"Inventory!AA12","v":0},{"$f":"Inventory!AC12","v":0},{"$f":"Inventory!AF12","v":0},{"$f":"Inventory!AI12","v":0}]
[null,null,null,null,3,null,{"$f":"SUM('Bus Data'!$I$16)","v":0},null,null,null,null,null,null,{"$f":"IF('Policy Questionnaire'!N35,\"X\",\"\")","v":""},"Transportation director",null,null,null,null,"F.",{"$f":"Inventory!I13","v":0},{"$f":"Inventory!L13","v":0},{"$f":"Inventory!N13","v":0},{"$f":"Inventory!P13","v":0},{"$f":"Inventory!S13","v":0},{"$f":"Inventory!V13","v":0},{"$f":"Inventory!X13","v":0},{"$f":"Inventory!AA13","v":0},{"$f":"Inventory!AC13","v":0},{"$f":"Inventory!AF13","v":0},{"$f":"Inventory!AI13","v":0}]
[null,null,null,"D.",null,null,{"$f":"'Bus Data'!I18","v":0},null,null,null,null,null,null,{"$f":"IF('Policy Questionnaire'!N37,\"X\",\"\")","v":""},"Principals",null,null,null,null,"G.",{"$f":"Inventory!I14","v":0},{"$f":"Inventory!L14","v":0},{"$f":"Inventory!N14","v":0},{"$f":"Inventory!P14","v":0},{"$f":"Inventory!S14","v":0},{"$f":"Inventory!V14","v":0},{"$f":"Inventory!X14","v":0},{"$f":"Inventory!AA14","v":0},{"$f":"Inventory!AC14","v":0},{"$f":"Inventory!AF14","v":0},{"$f":"Inventory!AI14","v":0}]
[null,null,null,"E.",null,"Sub-Total",{"$f":"'Bus Data'!K23","v":0},null,null,null,null,null,null,{"$f":"IF('Policy Questionnaire'!N39,\"X\",\"\")","v":""},"TIMS Coordinator",null,null,null,null,"H.",{"$f":"Inventory!I15","v":0},{"$f":"Inventory!L15","v":0},{"$f":"Inventory!N15","v":0},{"$f":"Inventory!P15","v":0},{"$f":"Inventory!S15","v":0},{"$f":"Inventory!V15","v":0},{"$f":"Inventory!X15","v":0},{"$f":"Inventory!AA15","v":0},{"$f":"Inventory!AC15","v":0},{"$f":"Inventory!AF15","v":0},{"$f":"Inventory!AI15","v":0}]
[null,null,null,null,1,null,{"$f":"'Bus Data'!I21","v":0},null,null,null,null,null,null,{"$f":"IF('Policy Questionnaire'!N41,\"X\",\"\")","v":""},"Trans. supervisor"]
[null,null,null,null,2,null,{"$f":"'Bus Data'!I22","v":0},null,null,null,null,null,null,{"$f":"IF('Policy Questionnaire'!N43,\"X\",\"\")","v":""},{"$f":"IF('Policy Questionnaire'!F43<>\"\",'Policy Questionnaire'!F43,\"Other Ln C\")","v":"Other Ln C"},null,null,null,"Non-Stocl Inventory"]
[null,null,null,null,3,null,{"$f":"'Bus Data'!I23","v":0},null,null,null,null,"D.",null,{"$f":"IF('Policy Questionnaire'!N47,\"Yes\",\"No\")","v":"No"},"Yes/No",null,null,null,null,null,"Quantity","Currency"]
[null,null,null,"F.",null,null,{"$f":"'Bus Data'!I25","v":0},null,null,null,null,"E.",null,{"$f":"IF('Policy Questionnaire'!N53,\"Yes\",\"No\")","v":"No"},"Yes/No",null,null,null,null,"A.",{"$f":"Inventory!N27","v":0},{"$f":"Inventory!P27","v":0}]
[null,null,null,"G.",1,null,{"$f":"'Bus Data'!I28","v":0},null,null,null,null,"F.",null,{"$f":"IF('Policy Questionnaire'!N61,\"X\",\"\")","v":""},"At-risk BEP"]
[null,null,null,null,2,null,{"$f":"'Bus Data'!I29","v":0},null,null,null,null,null,null,{"$f":"IF('Policy Questionnaire'!N63,\"X\",\"\")","v":""},"Pre-K Handicapped",null,null,null,"Engine Replacement"]
[null,null,null,"H.",1,null,{"$f":"'Bus Data'!I33","v":0},null,null,null,null,null,null,{"$f":"IF('Policy Questionnaire'!N65,\"X\",\"\")","v":""},"Head Start",null,null,null,null,null,"Quantity"]
[null,null,null,null,2,null,{"$f":"'Bus Data'!I34","v":0},null,null,null,null,null,null,{"$f":"IF('Policy Questionnaire'!N67,\"X\",\"\")","v":""},"At-risk Remediation",null,null,null,null,"A.",{"$f":"Inventory!N31","v":0}]
[null,null,null,null,3,"Sub-Total",{"$f":"'Bus Data'!K41","v":0},null,null,null,null,null,null,{"$f":"IF('Policy Questionnaire'!N69,\"X\",\"\")","v":""},"Migrant Education",null,null,null,null,"B.",{"$f":"Inventory!N32","v":0}]
[null,null,null,null,null,"Primary",{"$f":"'Bus Data'!K37","v":"Pri. System"},null,null,null,null,null,null,{"$f":"IF('Policy Questionnaire'!N71,\"X\",\"\")","v":""},"DARE Program",null,null,null,null,"C.",{"$f":"Inventory!N33","v":0}]
[null,null,null,null,null,"Secondary",{"$f":"'Bus Data'!M37","v":"Sec. System"},null,null,null,null,null,null,{"$f":"IF('Policy Questionnaire'!N73,\"X\",\"\")","v":""},"Local Enrichment"]
[null,null,null,null,null,"a.",{"$f":"'Bus Data'!I38","v":0},null,null,null,null,null,null,{"$f":"IF('Policy Questionnaire'!N75,\"X\",\"\")","v":""},"SOS Plus"]
[null,null,null,null,null,"b.",{"$f":"'Bus Data'!I39","v":0},null,null,null,null,null,null,{"$f":"IF('Policy Questionnaire'!N77,\"X\",\"\")","v":""},"VIPERS Program"]
[null,null,null,null,null,"c.",{"$f":"'Bus Data'!I40","v":0},null,null,null,null,null,null,{"$f":"IF('Policy Questionnaire'!N79,\"X\",\"\")","v":""},{"$f":"IF('Policy Questionnaire'!F79<>\"\",'Policy Questionnaire'!F79,\"Other Ln F\")","v":"Other Ln F"}]
[null,null,null,null,null,"d.",{"$f":"'Bus Data'!I41","v":0},null,null,null,null,"G.",null,{"$f":"IF('Policy Questionnaire'!N83,\"X\",\"\")","v":""},"None"]
[null,null,null,null,4,null,{"$f":"'Bus Data'!I43","v":0},null,null,null,null,null,null,{"$f":"'Policy Questionnaire'!N85","v":0},"Regular Students"]
[null,null,null,null,null,"Primary",{"$f":"'Bus Data'!K44","v":"Pri. System"},null,null,null,null,null,null,{"$f":"'Policy Questionnaire'!N87","v":0},"Special Educ. Students"]
[null,null,null,null,null,"Secondary",{"$f":"'Bus Data'!M44","v":"Sec. System"},null,null,null,null,"H.",null,{"$f":"'Policy Questionnaire'!I91","v":"00:00:00"},"AM"]
[null,null,null,"I.",null,"Sub-Total",{"$f":"'Bus Data'!K49","v":"0"},null,null,null,null,null,null,{"$f":"IF('Policy Questionnaire'!N93,\"X\",\"\")","v":""},"None"]
[null,null,null,null,null,"Primary",{"$f":"'Bus Data'!K47","v":"Pri. System"},null,null,null,null,"I.",null,{"$f":"'Policy Questionnaire'!N97","v":"00:00:00"},"PM"]
[null,null,null,null,null,"Secondary",{"$f":"'Bus Data'!M47","v":"Sec. System"},null,null,null,null,null,null,{"$f":"IF('Policy Questionnaire'!N99,\"X\",\"\")","v":""},"None"]
[null,null,null,null,1,null,{"$f":"'Bus Data'!I48","v":0},null,null,null,null,"J.",null,{"$f":"'Policy Questionnaire'!N103","v":0},"Food service/Driver"]
[null,null,null,null,2,null,{"$f":"'Bus Data'!I49","v":0},null,null,null,null,null,null,{"$f":"'Policy Questionnaire'!N105","v":0},"Custodial/Driver"]
[null,null,null,"J.",null,null,{"$f":"'Bus Data'!I51","v":0},null,null,null,null,null,null,{"$f":"'Policy Questionnaire'!I107","v":0},"Teacher Asst/Driver"]
[null,null,"Surplus Property","A.",null,null,{"$f":"'Bus Data'!I54","v":0},null,null,null,null,null,null,{"$f":"'Policy Questionnaire'!I110","v":0},{"$f":"IF('Policy Questionnaire'!F110<>\"\",'Policy Questionnaire'!F110,\"Other Ln J\")","v":"Other Ln J"}]
[null,null,null,"B.",null,null,{"$f":"'Bus Data'!I55","v":0},null,null,null,null,"K.",null,{"$f":"IF('Policy Questionnaire'!N116,\"X\",\"\")","v":""},"Food service/Driver"]
[null,null,null,"C.",null,null,{"$f":"'Bus Data'!I56","v":0},null,null,null,null,null,null,{"$f":"IF('Policy Questionnaire'!N118,\"X\",\"\")","v":""},"Custodial/Driver"]
[null,null,"State Surplus Contracts","A.",null,"Sub-Total",{"$f":"'Bus Data'!K61","v":0},null,null,null,null,null,null,{"$f":"IF('Policy Questionnaire'!N120,\"X\",\"\")","v":""},"Teacher Asst/Driver"]
[null,null,null,null,1,null,{"$f":"'Bus Data'!I60","v":0},null,null,null,null,null,null,{"$f":"IF('Policy Questionnaire'!N122,\"X\",\"\")","v":""},{"$f":"IF('Policy Questionnaire'!F122<>\"\",'Policy Questionnaire'!F122,\"Other Ln K\")","v":"Other Ln K"}]
[null,null,null,null,2,null,{"$f":"'Bus Data'!I61","v":0},null,null,null,null,"L.",null,{"$f":"IF('Policy Questionnaire'!$N$129,\"X\",\"\")","v":""},"Adopted Policy History Check "]
[null,null,null,"B.",null,null,{"$f":"'Bus Data'!I62","v":0},null,null,null,null,null,null,{"$f":"IF('Policy Questionnaire'!$N$131,\"X\",\"\")","v":""},"Required for Pre-Employment"]
[null,null,null,"C.",null,null,{"$f":"'Bus Data'!I63","v":0},null,null,null,null,"M.",null,{"$f":"IF('Policy Questionnaire'!$N$135,\"Annual \",\"\")&IF('Policy Questionnaire'!$N$137,\"Semi-Annual \",\"\")&IF('Policy Questionnaire'!$N$139,\"Never \",\"\")&IF('Policy Questionnaire'!$N$141,\"Other M\",\"\")","v":""},"Background check"]
[null,null,null,"D.",null,null,{"$f":"'Bus Data'!I64","v":0},null,null,null,null,"N.",null,{"$f":"IF('Policy Questionnaire'!$N$147,\"X\",\"\")","v":""},"Criminal Background Search"]
[null,null,null,"E.",null,null,{"$f":"'Bus Data'!I65","v":0},null,null,null,null,null,null,{"$f":"IF('Policy Questionnaire'!$N$149,\"X\",\"\")","v":""},"FBI Background Check"]
[null,null,"Bus Drivers -","A.",null,null,{"$f":"'Local Expenditures'!$N$9","v":0},null,null,null,null,null,null,{"$f":"IF('Policy Questionnaire'!$N$151,\"X\",\"\")","v":""},"State Background Check"]
[null,null," Local Expenditures","B.",null,null,{"$f":"'Local Expenditures'!$N$11","v":0},null,null,null,null,null,null,{"$f":"IF('Policy Questionnaire'!$N$153,\"X\",\"\")","v":""},"Local Background Check"]
[null,null,null,"C.",2,null,{"$f":"IF('Local Expenditures'!L14=\"yes\",'Local Expenditures'!$N$17,0)","v":0},null,null,null,null,null,null,{"$f":"IF('Policy Questionnaire'!$N$155,\"X\",\"\")","v":""},"National Background Check"]
[null,null,null,null,null,"Sub-Total",{"$f":"'Local Expenditures'!$P$19","v":0},null,null,null,null,null,null,{"$f":"IF('Policy Questionnaire'!$N$157,\"X\",\"\")","v":""},"Police Record Search"]
[null,null,null,"D.",1,"a.",{"$f":"'Local Expenditures'!$J$23","v":0},null,null,null,null,null,null,{"$f":"IF('Policy Questionnaire'!$N$159,\"X\",\"\")","v":""},"Sex Offender Search"]
[null,null,null,null,null,"b.",{"$f":"'Local Expenditures'!$L$23","v":0},null,null,null,null,null,null,{"$f":"IF('Policy Questionnaire'!$N$161,\"X\",\"\")","v":""},"Driving Record Search"]
[null,null,null,null,null,"c.",{"$f":"'Local Expenditures'!$N$23","v":0},null,null,null,null,null,null,{"$f":"IF('Policy Questionnaire'!$N$163,\"X\",\"\")","v":""},"Prison Inmate Search"]
[null,null,null,null,2,"a.",{"$f":"'Local Expenditures'!$J$24","v":0},null,null,null,null,null,null,{"$f":"IF('Policy Questionnaire'!$N$165,\"X\",\"\")","v":""},"Vehicle History Search"]
[null,null,null,null,null,"b.",{"$f":"'Local Expenditures'!$L$24","v":0},null,null,null,null,null,null,{"$f":"IF('Policy Questionnaire'!$N$167,\"X\",\"\")","v":""},{"$f":"IF('Policy Questionnaire'!$F$167<>\"\",'Policy Questionnaire'!$F$167,\"Other Ln N\")","v":"Other Ln N"}]
[null,null,null,null,null,"c.",{"$f":"'Local Expenditures'!$N$24","v":0},null,null,null,null,"O.",null,{"$f":"IF('Policy Questionnaire'!$N$171,\"Annual \",\"\")&IF('Policy Questionnaire'!$N$173,\"Semi-Annual \",\"\")&IF('Policy Questionnaire'!$N$175,\"Never \",\"\")&IF('Policy Questionnaire'!$F$177<>\"\",'Policy Questionnaire'!$F$177,\"Other Ln O\")","v":"Other Ln O"},"Inventory"]
[null,null,null,null,3,"a.",{"$f":"'Local Expenditures'!$J$25","v":0},null,null,null,null,"P.",null,{"$f":"'Policy Questionnaire'!$N$179","v":0},"# of persons assigned"]
[null,null,null,null,null,"b.",{"$f":"'Local Expenditures'!$L$25","v":0},null,null,null,null,"Q.","a.",{"$f":"'Policy Questionnaire'!$N$184","v":0},"TIMS 75%-100% of their time"]
[null,null,null,null,null,"c.",{"$f":"'Local Expenditures'!$N$25","v":0},null,null,null,null,null,"b.",{"$f":"'Policy Questionnaire'!$N$186","v":0},"TIMS 50%-74% of their time?"]
[null,null,null,null,null,"Sub-Total",{"$f":"'Local Expenditures'!$J$26","v":""},null,null,null,null,null,"c.",{"$f":"'Policy Questionnaire'!$N$188","v":0},"TIMS 25%-49% of their time?"]
[null,null,null,null,null,"Sub-Total",{"$f":"'Local Expenditures'!$L$26","v":""},null,null,null,null,null,"d.",{"$f":"'Policy Questionnaire'!$N$190","v":0},"TIMS 1%-24% of their time?"]
[null,null,null,null,null,"Sub-Total",{"$f":"'Local Expenditures'!$N$26","v":""},null,null,null,null,null,"e.",{"$f":"IF('Policy Questionnaire'!$N$192,\"Yes\",\"\")","v":""},"Editing Powerschool?"]
[null,null,"Transporation Personnel","A.",1,null,{"$f":"'Local Expenditures'!$N$30","v":0},null,null,null,null,null,"f.",{"$f":"IF('Policy Questionnaire'!$N$196,\"Yes\",\"\")","v":""},"Read only Powerschool?"]
[null,null,null,null,2,null,{"$f":"'Local Expenditures'!$N$31","v":0},null,null,null,null,null,"g.",{"$f":"IF('Policy Questionnaire'!$N$200,\"Daily \",\"\")&IF('Policy Questionnaire'!$N$202,\"Weekly \",\"\")&IF('Policy Questionnaire'!$N$204,\"Monthly \",\"\")&IF('Policy Questionnaire'!$N$206,\"A few times per semester \",\"\")&IF('Policy Questionnaire'!$N$208,\"Twice a year \",\"\")&IF('Policy Questionnaire'!$N$210,\"Once a year \",\"\")","v":""},"Upload schedule TIMS"]
[null,null,null,"B.",1,null,{"$f":"'Local Expenditures'!$N$33","v":0},null,null,null,null,"R.","a.",{"$f":"'Policy Questionnaire'!I216","v":0},"Students Transported"]
[null,null,null,null,2,null,{"$f":"'Local Expenditures'!$N$34","v":0},null,null,null,null,null,"b.",{"$f":"'Policy Questionnaire'!I218","v":0},"Buses Dedicated"]
[null,null,null,"C.",1,"Salary",{"$f":"'Local Expenditures'!$L$39","v":0},null,null,null,null,null,"c.",{"$f":"'Policy Questionnaire'!I220","v":0},"Service Charter Buses"]
[null,null,null,null,null,"Benefits",{"$f":"'Local Expenditures'!$N$39","v":0},null,null,null,null,"S.","a.",{"$f":"'Policy Questionnaire'!I226","v":0},"Mech I positions"]
[null,null,null,null,2,"Salary",{"$f":"'Local Expenditures'!$L$47","v":""},null,null,null,null,null,"b.",{"$f":"'Policy Questionnaire'!I228","v":0},"Mech II positions"]
[null,null,null,null,null,"Benefits",{"$f":"'Local Expenditures'!$N$47","v":""},null,null,null,null,null,"c.",{"$f":"'Policy Questionnaire'!I230","v":0},"Mech III positions"]
[null,null,"Other Local Expenditures","A.",null,null,{"$f":"'Local Expenditures'!$N$55","v":0},null,null,null,null,null,"d.",{"$f":"'Policy Questionnaire'!I232","v":0},"Mech I annual avg salary"]
[null,null,null,"B.",null,null,{"$f":"'Local Expenditures'!$N$56","v":0},null,null,null,null,null,"e.",{"$f":"'Policy Questionnaire'!I234","v":0},"Mech II annual avg salary"]
[null,null,null,"C.",null,null,{"$f":"'Local Expenditures'!$N$65","v":""},null,null,null,null,null,"f.",{"$f":"'Policy Questionnaire'!I236","v":0},"Mech III annual avg salary"]
[null,null,"DPI Offical Use","A.",null,null,{"$f":"'Local Expenditures'!$N$69","v":0}]
[null,null,null,"B.",null,null,{"$f":"'Local Expenditures'!$N$73","v":0}]

{"sheet":"Policy Summary","index":10,"n_rows":7,"n_cols":77,"rows_kept":7,"cut":false,"hidden":false,"merged":[[3,10,3,11],[3,18,4,18],[3,19,4,19]]}
[]
[]
[]
[null,null,null,null,"A.",null,null,null,null,null,"B.",null,"C.",null,null,null,null,null,"D.","E.","F.",null,null,null,null,null,null,null,null,null,"G.",null,null,"H.",null,"I.",null,"J.",null,null,null,"K.",null,null,null,"L.",null,"M.","N.",null,null,null,null,null,null,null,null,null,null,"O.","P.","Q.",null,null,null,null,null,null,"R.",null,null,"S."]
[null,null,null,null,null,null,null,null,null,null,"a.","b.",null,null,null,null,null,null,null,null,null,null,null,null,null,null,null,null,null,null,null,null,null,null,null,null,null,null,null,null,null,null,null,null,null,null,null,null,null,null,null,null,null,null,null,null,null,null,null,null,null,"a.","b.","c.","d.","e.","f.","g.","a.","b.","c.","a.","b.","c.","d.","e.","f."]
[null,"LEA","Code",null,"Supt./Asst. Supt.","Transportation director","Principals","TIMS Coordinator","Trans. supervisor",{"$f":"'Official Summary'!O9","v":"Other Ln A"},"Yes/No","Yes/No","Supt./Asst. Supt.","Transportation director","Principals","TIMS Coordinator","Trans. supervisor",{"$f":"'Official Summary'!O17","v":"Other Ln C"},"Yes/No","Yes/No","At-risk BEP","Pre-K Handicapped","Head Start","At-risk Remediation","Migrant Education","DARE Program","Local Enrichment","SOS Plus","VIPERS Program",{"$f":"'Official Summary'!O29","v":"Other Ln F"},"None","Regular Students","Special Educ. Students","AM","None","PM","None","Food service/Driver","Custodial/Driver","Teacher Asst/Driver",{"$f":"'Official Summary'!O40","v":"Other Ln J"},"Food service/Driver","Custodial/Driver","Teacher Asst/Driver",{"$f":"'Official Summary'!O44","v":"Other Ln K"},"Adopted Policy History Check ","Required for Pre-Employment","Background check","Criminal Background Search","FBI Background Check","State Background Check","Local Background Check","National Background Check","Police Record Search","Sex Offender Search","Driving Record Search","Prison Inmate Search","Vehicle History Search",{"$f":"IF('Policy Questionnaire'!$F$167<>\"\",'Policy Questionnaire'!$F$167,\"Other Ln N\")","v":"Other Ln N"},"Inventory","# of persons assigned","TIMS 75%-100% of their time","TIMS 50%-74% of their time?","TIMS 25%-49% of their time?","TIMS 1%-24% of their time?","Editing Powerschool?","Read only Powerschool?","Upload schedule TIMS","Students Transported","Buses Dedicated","Service Charter Buses","Mech I positions","Mech II positions","Mech III positions","Mech I annual avg salary","Mech II annual avg salary","Mech III annual avg salary"]
[null,{"$f":"'Bus Data'!G4","v":"ALAMANCE"},{"$f":"'Official Summary'!G6","v":"  010"},null,{"$f":"'Official Summary'!N4","v":""},{"$f":"'Official Summary'!N5","v":""},{"$f":"'Official Summary'!N6","v":""},{"$f":"'Official Summary'!N7","v":""},{"$f":"'Official Summary'!N8","v":""},{"$f":"'Official Summary'!N9","v":""},{"$f":"'Official Summary'!N10","v":"No"},{"$f":"'Official Summary'!N11","v":"No"},{"$f":"'Official Summary'!N12","v":""},{"$f":"'Official Summary'!N13","v":""},{"$f":"'Official Summary'!N14","v":""},{"$f":"'Official Summary'!N15","v":""},{"$f":"'Official Summary'!N16","v":""},{"$f":"'Official Summary'!N17","v":""},{"$f":"'Official Summary'!N18","v":"No"},{"$f":"'Official Summary'!N19","v":"No"},{"$f":"'Official Summary'!N20","v":""},{"$f":"'Official Summary'!N21","v":""},{"$f":"'Official Summary'!N22","v":""},{"$f":"'Official Summary'!N23","v":""},{"$f":"'Official Summary'!N24","v":""},{"$f":"'Official Summary'!N25","v":""},{"$f":"'Official Summary'!N26","v":""},{"$f":"'Official Summary'!N27","v":""},{"$f":"'Official Summary'!N28","v":""},{"$f":"'Official Summary'!N29","v":""},{"$f":"'Official Summary'!N30","v":""},{"$f":"'Official Summary'!N31","v":0},{"$f":"'Official Summary'!N32","v":0},{"$f":"'Official Summary'!N33","v":0},{"$f":"'Official Summary'!N34","v":""},{"$f":"'Official Summary'!N35","v":"00:00:00"},{"$f":"'Official Summary'!N36","v":""},{"$f":"'Official Summary'!N37","v":0},{"$f":"'Official Summary'!N38","v":0},{"$f":"'Official Summary'!N39","v":0},{"$f":"'Official Summary'!N40","v":0},{"$f":"'Official Summary'!N41","v":""},{"$f":"'Official Summary'!N42","v":""},{"$f":"'Official Summary'!N43","v":""},{"$f":"'Official Summary'!N44","v":""},{"$f":"'Official Summary'!N45","v":""},{"$f":"'Official Summary'!N46","v":""},{"$f":"'Official Summary'!N47","v":""},{"$f":"'Official Summary'!N48","v":""},{"$f":"'Official Summary'!N49","v":""},{"$f":"'Official Summary'!N50","v":""},{"$f":"'Official Summary'!N51","v":""},{"$f":"'Official Summary'!N52","v":""},{"$f":"'Official Summary'!N53","v":""},{"$f":"'Official Summary'!N54","v":""},{"$f":"'Official Summary'!N55","v":""},{"$f":"'Official Summary'!N56","v":""},{"$f":"'Official Summary'!N57","v":""},{"$f":"'Official Summary'!N58","v":""},{"$f":"'Official Summary'!N59","v":"Other Ln O"},{"$f":"'Official Summary'!N60","v":0},{"$f":"'Official Summary'!N61","v":0},{"$f":"'Official Summary'!N62","v":0},{"$f":"'Official Summary'!N63","v":0},{"$f":"'Official Summary'!N64","v":0},{"$f":"'Official Summary'!N65","v":""},{"$f":"'Official Summary'!N66","v":""},{"$f":"'Official Summary'!N67","v":""},{"$f":"'Official Summary'!N68","v":0},{"$f":"'Official Summary'!N69","v":0},{"$f":"'Official Summary'!N70","v":0},{"$f":"'Official Summary'!N71","v":0},{"$f":"'Official Summary'!N72","v":0},{"$f":"'Official Summary'!N73","v":0},{"$f":"'Official Summary'!N74","v":0},{"$f":"'Official Summary'!N75","v":0},{"$f":"'Official Summary'!N76","v":0}]